Workbook

Sheet Input (hidden)
B2: Tipo de tarjeta de crédito | C2: Límite inferior | D2: Tipo de tarjeta elegida | F2: Tipo de consumo (opciones) | G2: Tipo de consumo (visualizado) | I2: Situación laboral (opciones) | J2: Situación laboral (visualizado) | L2: Sector donde labora - Activo | M2: Sector donde labora - Pensionista | N2: Sector Laboral (Opciones mostradas) | O2: Sector Laboral (Visualizado) | Q2: Sector donde labora - Activo o Pensionista | R2: Situación Laboral | S2: Sit. Laboral & Sector | T2: Fecha de PAGO - Activo o Pensionista | U2: Fecha de FACTURACIÓN - Activo o Pensionista | V2: Sit. Laboral & Sector | W2: FECHA DE PAGO | X2: FECHA DE FACTURACIÓN | Z2: Sector donde labora - Pensionista | AA2: Fecha de pago - Pensionista | AB2: Fecha de facturación - Pensionista | AD2: Tipo de Seguro para LINEA | AE2: Importe | AF2: Seguro que se muestra | AH2: Seguros para TC Clásica/Gold/Platinium | AI2: Seguros para TC Clasica Sin Seg. Desgravamen | AJ2: Seguro Opciones | AL2: Tipo de Seguro para COMPRAS / DISP. EFECT | AM2: Importe | AN2: Seguro que se muestra | AP2: Nro de cuotas Opciones | AQ2: Nro de cuotas que se muestra | AS2: Envío de EECC | AT2: Costo | AU2: Envío de EECC que se muestra | AW2: TEA | AX2: =AZ2&BA2 -> Tipo de ConsumoPlazo | AY2: Tarjeta | AZ2: Tipo de Consumo | BA2: Plazo | BC2: Tarjeta | BD2: Tipo de Consumo | BE2: Plazo | BF2: =+BD2&BE2 -> Tipo de ConsumoPlazo | BG2: TEA
B3: Clásica Sin Seg. Desgravamen | C3: 1000 | D3: Clásica Sin Seg. Desgravamen | F3: Compra | G3: Compra | I3: Activo | J3: Activo | L3: Gobiernos Regionales: Unidades Ejecutoras de Agricultura | M3: Banco de la Nación | N3: =IF($J$3="Activo",L3,M3) -> Gobiernos Regionales: Unidades Ejecutoras de Agricultura | O3: Consejo Nacional de la Magistratura | Q3: Gobiernos Regionales: Unidades Ejecutoras de Agricultura | R3: Activo | S3: =R3&Q3 -> ActivoGobiernos Regionales: Unidades Ejecutoras de Agricultura | T3: 16 | U3: 1 | V3: =J3&O3 -> ActivoConsejo Nacional de la Magistratura | W3: =VLOOKUP(V3,S3:T86,2) -> 16 | X3: =VLOOKUP(V3,S3:U86,3,FALSE) -> 4 | Z3: Banco de la Nación | AA3: 8 | AB3: 23 | AD3: Sin Seguro de Desgravamen | AE3: 0 | AF3: Sin Seguro de Desgravamen | AH3: Individual clásico | AI3: Sin Seguro de Desgravamen | AJ3: =IF(OR(D3="Clásica",D3="Gold",D3="Platinium"),AH3:AH4,AI3) -> Sin Seguro de Desgravamen | AL3: Sin Seguro de Desgravamen | AM3: 0 | AN3: Sin Seguro de Desgravamen | AP3: 1 | AQ3: 17 | AS3: Virtual | AT3: 0 | AU3: Virtual | AW3: =VLOOKUP(AX3,BF3:BG386,2,FALSE) -> 0.36 | AX3: =AY3&AZ3&BA3 -> Clásica Sin Seg. DesgravamenCompra17 | AY3: =+D3 -> Clásica Sin Seg. Desgravamen | AZ3: =+G3 -> Compra | BA3: =AQ3 -> 17 | BC3: Clásica | BD3: Compra | BE3: 1 | BF3: =BC3&BD3&BE3 -> ClásicaCompra1 | BG3: 0.235
F4: Disposición de efectivo | I4: Pensionista | L4: Ministerio de Defensa (FAP, Marina, Ejército) | M4: Presidencia Consejo de Ministros | N4: =IF($J$3="Activo",L4,M4) -> Ministerio de Defensa (FAP, Marina, Ejército) | Q4: Ministerio de Defensa (FAP, Marina, Ejército) | R4: Activo | S4: ActivoMinisterio de Defensa (FAP, Marina, Ejército) | T4: 18 | U4: 1 | Z4: Presidencia Consejo de Ministros | AA4: 9 | AB4: 24 | AH4: Endosado | AP4: 2 | AS4: Físico | AT4: 6 | BC4: Clásica | BD4: Compra | BE4: =+BE3+1 -> 2 | BF4: =BC4&BD4&BE4 -> ClásicaCompra2 | BG4: 0.235
L5: Presidencia Consejo de Ministros | M5: Despacho Presidencial | N5: Presidencia Consejo de Ministros | Q5: Presidencia Consejo de Ministros | R5: Activo | S5: ActivoPresidencia Consejo de Ministros | T5: 16 | U5: 1 | Z5: Despacho Presidencial | AA5: 9 | AB5: 24 | AP5: 3 | BC5: Clásica | BD5: Compra | BE5: =+BE4+1 -> 3 | BF5: ClásicaCompra3 | BG5: 0.235
L6: Poder Judicial | M6: Poder Judicial | N6: Poder Judicial | Q6: Poder Judicial | R6: Activo | S6: ActivoPoder Judicial | T6: 16 | U6: 1 | Z6: Poder Judicial | AA6: 9 | AB6: 24 | AP6: 4 | BC6: Clásica | BD6: Compra | BE6: =+BE5+1 -> 4 | BF6: ClásicaCompra4 | BG6: 0.235
L7: Ministerio de Justicia | M7: Ministerio de Justicia | N7: Ministerio de Justicia | Q7: Ministerio de Justicia | R7: Activo | S7: ActivoMinisterio de Justicia | T7: 15 | U7: 1 | Z7: Ministerio de Justicia | AA7: 9 | AB7: 24 | AP7: 5 | BC7: Clásica | BD7: Compra | BE7: 5 | BF7: ClásicaCompra5 | BG7: 0.235
L8: Ministerio de Relaciones Exteriores | M8: Ministerio de Relaciones Exteriores | N8: Ministerio de Relaciones Exteriores | Q8: Ministerio de Relaciones Exteriores | R8: Activo | S8: ActivoMinisterio de Relaciones Exteriores | T8: 16 | U8: 1 | Z8: Ministerio de Relaciones Exteriores | AA8: 9 | AB8: 24 | AL8: Tasa de Seguro de Desgravamen | AM8: Porcentaje | AN8: Porcentaje que se muestra | AP8: 6 | BC8: Clásica | BD8: Compra | BE8: 6 | BF8: ClásicaCompra6 | BG8: 0.235
L9: Ministerio de Economía y Finanzas | M9: Ministerio de Economía y Finanzas | N9: Ministerio de Economía y Finanzas | Q9: Ministerio de Economía y Finanzas | R9: Activo | S9: ActivoMinisterio de Economía y Finanzas | T9: 16 | U9: 1 | Z9: Ministerio de Economía y Finanzas | AA9: 9 | AB9: 24 | AL9: Sin Seguro de Desgravamen | AM9: 0 | AN9: =VLOOKUP(AN3,AL9:AM11,2,FALSE) -> 0 | AP9: 7 | BC9: Clásica | BD9: Compra | BE9: 7 | BF9: ClásicaCompra7 | BG9: 0.235
L10: Universidades Públicas | M10: Universidades Públicas | N10: Universidades Públicas | Q10: Universidades Públicas | R10: Activo | S10: ActivoUniversidades Públicas | T10: 17 | U10: 1 | Z10: Universidades Públicas | AA10: 9 | AB10: 24 | AP10: 8 | BC10: Clásica | BD10: Compra | BE10: 8 | BF10: ClásicaCompra8 | BG10: 0.235
L11: Ministerio de Agricultura | M11: Contraloría General de la República | N11: Ministerio de Agricultura | Q11: Ministerio de Agricultura | R11: Activo | S11: ActivoMinisterio de Agricultura | T11: 15 | U11: 1 | Z11: Contraloría General de la República | AA11: 9 | AB11: 24 | AP11: 9 | BC11: Clásica | BD11: Compra | BE11: 9 | BF11: ClásicaCompra9 | BG11: 0.235
L12: Contraloría General de la República | M12: Defensoría del Pueblo | N12: Contraloría General de la República | Q12: Contraloría General de la República | R12: Activo | S12: ActivoContraloría General de la República | T12: 17 | U12: 4 | Z12: Defensoría del Pueblo | AA12: 9 | AB12: 24 | AP12: 10 | BC12: Clásica | BD12: Compra | BE12: 10 | BF12: ClásicaCompra10 | BG12: 0.235
L13: Defensoría del Pueblo | M13: Consejo Nacional de la Magistratura | N13: Defensoría del Pueblo | Q13: Defensoría del Pueblo | R13: Activo | S13: ActivoDefensoría del Pueblo | T13: 15 | U13: 3 | Z13: Consejo Nacional de la Magistratura | AA13: 9 | AB13: 24 | AP13: 11 | BC13: Clásica | BD13: Compra | BE13: 11 | BF13: ClásicaCompra11 | BG13: 0.235
L14: Consejo Nacional de la Magistratura | M14: Ministerio Público | N14: Consejo Nacional de la Magistratura | Q14: Consejo Nacional de la Magistratura | R14: Activo | S14: ActivoConsejo Nacional de la Magistratura | T14: 16 | U14: 4 | Z14: Ministerio Público | AA14: 9 | AB14: 24 | AP14: 12 | BC14: Clásica | BD14: Compra | BE14: 12 | BF14: ClásicaCompra12 | BG14: 0.25
L15: Ministerio Público | M15: Tribunal Constitucional | N15: Ministerio Público | Q15: Ministerio Público | R15: Activo | S15: ActivoMinisterio Público | T15: 15 | U15: 1 | Z15: Tribunal Constitucional | AA15: 9 | AB15: 24 | AP15: 13 | BC15: Clásica | BD15: Compra | BE15: 13 | BF15: ClásicaCompra13 | BG15: 0.235
L16: Tribunal Constitucional | M16: Congreso de la República | N16: Tribunal Constitucional | Q16: Tribunal Constitucional | R16: Activo | S16: ActivoTribunal Constitucional | T16: 16 | U16: 2 | Z16: Congreso de la República | AA16: 9 | AB16: 24 | AP16: 14 | BC16: Clásica | BD16: Compra | BE16: 14 | BF16: ClásicaCompra14 | BG16: 0.235
L17: Congreso de la República | M17: Jurado Nacional de Elecciones | N17: Congreso de la República | Q17: Congreso de la República | R17: Activo | S17: ActivoCongreso de la República | T17: 16 | U17: 1 | Z17: Jurado Nacional de Elecciones | AA17: 9 | AB17: 24 | AP17: 15 | BC17: Clásica | BD17: Compra | BE17: 15 | BF17: ClásicaCompra15 | BG17: 0.235
L18: Jurado Nacional de Elecciones | M18: Oficina Nacional de Procesos Electorales | N18: Jurado Nacional de Elecciones | Q18: Jurado Nacional de Elecciones | R18: Activo | S18: ActivoJurado Nacional de Elecciones | T18: 16 | U18: 1 | Z18: Oficina Nacional de Procesos Electorales | AA18: 9 | AB18: 24 | AP18: 16 | BC18: Clásica | BD18: Compra | BE18: 16 | BF18: ClásicaCompra16 | BG18: 0.235
L19: Oficina Nacional de Procesos Electorales | M19: Registro Nacional de Identificación y Estado Civil | N19: Oficina Nacional de Procesos Electorales | Q19: Oficina Nacional de Procesos Electorales | R19: Activo | S19: ActivoOficina Nacional de Procesos Electorales | T19: 16 | U19: 3 | Z19: Registro Nacional de Identificación y Estado Civil | AA19: 9 | AB19: 24 | AP19: 17 | BC19: Clásica | BD19: Compra | BE19: 17 | BF19: ClásicaCompra17 | BG19: 0.235
L20: Registro Nacional de Identificación y Estado Civil | M20: Gobiernos Regionales: Unidades Ejecutoras de Agricultura | N20: Registro Nacional de Identificación y Estado Civil | Q20: Registro Nacional de Identificación y Estado Civil | R20: Activo | S20: ActivoRegistro Nacional de Identificación y Estado Civil | T20: 16 | U20: 2 | Z20: Gobiernos Regionales: Unidades Ejecutoras de Agricultura | AA20: 9 | AB20: 24 | AP20: 18 | BC20: Clásica | BD20: Compra | BE20: 18 | BF20: ClásicaCompra18 | BG20: 0.235
L21: Ministerio de Transporte y Comunicaciones | M21: Ministerio de Cultura | N21: Ministerio de Transporte y Comunicaciones | Q21: Ministerio de Transporte y Comunicaciones | R21: Activo | S21: ActivoMinisterio de Transporte y Comunicaciones | T21: 15 | U21: 1 | Z21: Ministerio de Cultura | AA21: 11 | AB21: 28 | AP21: 19 | BC21: Clásica | BD21: Compra | BE21: 19 | BF21: ClásicaCompra19 | BG21: 0.235
L22: Despacho Presidencial | M22: Ministerio de Educación: excepto UGEL 01, 03 y 07 | N22: Despacho Presidencial | Q22: Despacho Presidencial | R22: Activo | S22: ActivoDespacho Presidencial | T22: 16 | U22: 1 | Z22: Ministerio de Educación: excepto UGEL 01, 03 y 07 | AA22: 11 | AB22: 28 | AP22: 20 | BC22: Clásica | BD22: Compra | BE22: 20 | BF22: ClásicaCompra20 | BG22: 0.235
L23: Banco de la Nación | M23: Gobiernos Regionales: Unidades Ejecutoras de Educación | N23: Banco de la Nación | Q23: Banco de la Nación | R23: Activo | S23: ActivoBanco de la Nación | T23: 16 | U23: 2 | Z23: Gobiernos Regionales: Unidades Ejecutoras de Educación | AA23: 11 | AB23: 28 | AP23: 21 | BC23: Clásica | BD23: Compra | BE23: 21 | BF23: ClásicaCompra21 | BG23: 0.235
L24: Gobiernos Regionales: Unidades Ejecutoras de Educación | M24: Ministerio de Educación: UGEL 01, 03 y 07 | N24: Gobiernos Regionales: Unidades Ejecutoras de Educación | Q24: Gobiernos Regionales: Unidades Ejecutoras de Educación | R24: Activo | S24: ActivoGobiernos Regionales: Unidades Ejecutoras de Educación | T24: 16 | U24: 3 | Z24: Ministerio de Educación: UGEL 01, 03 y 07 | AA24: 10 | AB24: 27 | AP24: 22 | BC24: Clásica | BD24: Compra | BE24: 22 | BF24: ClásicaCompra22 | BG24: 0.235
L25: Ministerio de Cultura | M25: Ministerio del Ambiente | N25: Ministerio de Cultura | Q25: Ministerio de Cultura | R25: Activo | S25: ActivoMinisterio de Cultura | T25: 16 | U25: 2 | Z25: Ministerio del Ambiente | AA25: 12 | AB25: 26 | AP25: 23 | BC25: Clásica | BD25: Compra | BE25: 23 | BF25: ClásicaCompra23 | BG25: 0.235
L26: Ministerio de Educación: excepto UGEL 01, 03 y 07 | M26: Ministerio de Trabajo y Promoción del Empleo | N26: Ministerio de Educación: excepto UGEL 01, 03 y 07 | Q26: Ministerio de Educación: excepto UGEL 01, 03 y 07 | R26: Activo | S26: ActivoMinisterio de Educación: excepto UGEL 01, 03 y 07 | T26: 16 | U26: 3 | Z26: Ministerio de Trabajo y Promoción del Empleo | AA26: 12 | AB26: 26 | AP26: 24 | BC26: Clásica | BD26: Compra | BE26: 24 | BF26: ClásicaCompra24 | BG26: 0.235
L27: Ministerio de Educación: UGEL 01, 03 y 07 | M27: Ministerio de Agricultura | N27: Ministerio de Educación: UGEL 01, 03 y 07 | Q27: Ministerio de Educación: UGEL 01, 03 y 07 | R27: Activo | S27: ActivoMinisterio de Educación: UGEL 01, 03 y 07 | T27: 16 | U27: 1 | Z27: Ministerio de Agricultura | AA27: 12 | AB27: 26 | AP27: 25 | BC27: Clásica | BD27: Compra | BE27: 25 | BF27: ClásicaCompra25 | BG27: 0.255
L28: Gobierno Regional: Todas las Unidades Ejecutoras excepto las de Educación y Agricultura. | M28: Ministerio de Energía y Minas | N28: Gobierno Regional: Todas las Unidades Ejecutoras excepto las de Educación y Agricultura. | Q28: Gobierno Regional: Todas las Unidades Ejecutoras excepto las de Educación y Agricultura. | R28: Activo | S28: ActivoGobierno Regional: Todas las Unidades Ejecutoras excepto las de Educación y Agricultura. | T28: 16 | U28: 3 | Z28: Ministerio de Energía y Minas | AA28: 12 | AB28: 26 | AP28: 26 | BC28: Clásica | BD28: Compra | BE28: 26 | BF28: ClásicaCompra26 | BG28: 0.255
L29: Ministerio del Ambiente | M29: Ministerio de Comercio Exterior y Turismo | N29: Ministerio del Ambiente | Q29: Ministerio del Ambiente | R29: Activo | S29: ActivoMinisterio del Ambiente | T29: 16 | U29: 3 | Z29: Ministerio de Comercio Exterior y Turismo | AA29: 12 | AB29: 26 | AP29: 27 | BC29: Clásica | BD29: Compra | BE29: 27 | BF29: ClásicaCompra27 | BG29: 0.255
L30: Ministerio de Trabajo y Promoción del Empleo | M30: Ministerio de Transporte y Comunicaciones | N30: Ministerio de Trabajo y Promoción del Empleo | Q30: Ministerio de Trabajo y Promoción del Empleo | R30: Activo | S30: ActivoMinisterio de Trabajo y Promoción del Empleo | T30: 16 | U30: 1 | Z30: Ministerio de Transporte y Comunicaciones | AA30: 12 | AB30: 26 | AP30: 28 | BC30: Clásica | BD30: Compra | BE30: 28 | BF30: ClásicaCompra28 | BG30: 0.255
L31: Ministerio de Energía y Minas | M31: Ministerio de Vivienda, Construcción y Saneamiento | N31: Ministerio de Energía y Minas | Q31: Ministerio de Energía y Minas | R31: Activo | S31: ActivoMinisterio de Energía y Minas | T31: 19 | U31: 3 | Z31: Ministerio de Vivienda, Construcción y Saneamiento | AA31: 12 | AB31: 26 | AP31: 29 | BC31: Clásica | BD31: Compra | BE31: 29 | BF31: ClásicaCompra29 | BG31: 0.255
L32: Ministerio de Comercio Exterior y Turismo | M32: Ministerio de la Producción | N32: Ministerio de Comercio Exterior y Turismo | Q32: Ministerio de Comercio Exterior y Turismo | R32: Activo | S32: ActivoMinisterio de Comercio Exterior y Turismo | T32: 16 | U32: 3 | Z32: Ministerio de la Producción | AA32: 12 | AB32: 26 | AP32: 30 | BC32: Clásica | BD32: Compra | BE32: 30 | BF32: ClásicaCompra30 | BG32: 0.255
L33: Ministerio de Vivienda, Construcción y Saneamiento | M33: Ministerio de la Mujer y Poblaciones Vulnerables | N33: Ministerio de Vivienda, Construcción y Saneamiento | Q33: Ministerio de Vivienda, Construcción y Saneamiento | R33: Activo | S33: ActivoMinisterio de Vivienda, Construcción y Saneamiento | T33: 16 | U33: 1 | Z33: Ministerio de la Mujer y Poblaciones Vulnerables | AA33: 12 | AB33: 26 | AP33: 31 | BC33: Clásica | BD33: Compra | BE33: 31 | BF33: ClásicaCompra31 | BG33: 0.255
L34: Ministerio de la Producción | M34: Ministerio de Desarrollo e Inclusión Social | N34: Ministerio de la Producción | Q34: Ministerio de la Producción | R34: Activo | S34: ActivoMinisterio de la Producción | T34: 16 | U34: 3 | Z34: Ministerio de Desarrollo e Inclusión Social | AA34: 12 | AB34: 26 | AP34: 32 | BC34: Clásica | BD34: Compra | BE34: 32 | BF34: ClásicaCompra32 | BG34: 0.255
L35: Ministerio de la Mujer y Poblaciones Vulnerables | M35: Gobiernos Regionales: Todas las Unidades Ejecutoras excepto las de Educación y Agricultura | N35: Ministerio de la Mujer y Poblaciones Vulnerables | Q35: Ministerio de la Mujer y Poblaciones Vulnerables | R35: Activo | S35: =R35&Q35 -> ActivoMinisterio de la Mujer y Poblaciones Vulnerables | T35: 16 | U35: 3 | Z35: Gobiernos Regionales: Todas las Unidades Ejecutoras excepto las de Educación y Agricultura | AA35: 12 | AB35: 26 | AP35: 33 | BC35: Clásica | BD35: Compra | BE35: 33 | BF35: ClásicaCompra33 | BG35: 0.255
L36: Ministerio de Desarrollo e Inclusión Social | M36: Ministerio de Defensa (FAP, Marina, Ejército) | N36: Ministerio de Desarrollo e Inclusión Social | Q36: Ministerio de Desarrollo e Inclusión Social | R36: Activo | S36: ActivoMinisterio de Desarrollo e Inclusión Social | T36: 17 | U36: 4 | Z36: Ministerio de Defensa (FAP, Marina, Ejército) | AA36: 12 | AB36: 26 | AP36: 34 | BC36: Clásica | BD36: Compra | BE36: 34 | BF36: ClásicaCompra34 | BG36: 0.255
L37: Ministerio de Salud | M37: Ministerio de Salud | N37: Ministerio de Salud | Q37: Ministerio de Salud | R37: Activo | S37: ActivoMinisterio de Salud | T37: 16 | U37: 1 | Z37: Ministerio de Salud | AA37: 12 | AB37: 26 | AP37: 35 | BC37: Clásica | BD37: Compra | BE37: 35 | BF37: ClásicaCompra35 | BG37: 0.255
L38: Gobiernos Locales (Municipalidades) | M38: Gobiernos Locales (Municipalidades) (2) | N38: Gobiernos Locales (Municipalidades) | Q38: Gobiernos Locales (Municipalidades) | R38: Activo | S38: ActivoGobiernos Locales (Municipalidades) | T38: 16 | U38: 1 | Z38: Gobiernos Locales (Municipalidades) (2) | AA38: 13 | AB38: 25 | AP38: 36 | BC38: Clásica | BD38: Compra | BE38: 36 | BF38: ClásicaCompra36 | BG38: 0.255
L39: Ministerio del Interior (PNP) | M39: Ministerio del Interior (PNP) | N39: Ministerio del Interior (PNP) | Q39: Ministerio del Interior (PNP) | R39: Activo | S39: ActivoMinisterio del Interior (PNP) | T39: 16 | U39: 1 | Z39: Ministerio del Interior (PNP) | AA39: 13 | AB39: 25 | AP39: 37 | BC39: Clásica | BD39: Compra | BE39: 37 | BF39: ClásicaCompra37 | BG39: 0.275
L40: Fuero Militar Policial | M40: ONP : D.L. 19990 y Ley 26790 | N40: Fuero Militar Policial | Q40: Fuero Militar Policial | R40: Activo | S40: ActivoFuero Militar Policial | T40: 16 | U40: 1 | Z40: ONP : D.L. 19990 y Ley 26790 | AA40: 4 | AB40: 19 | AP40: 38 | BC40: Clásica | BD40: Compra | BE40: 38 | BF40: ClásicaCompra38 | BG40: 0.275
L41: ="" ->  | M41: ONP: D.L. 18846, Pensiones por Encargo (D.L. 20530), RTP, Electrolima, Empresa Nacional Tabaco | Q41: Banco de la Nación | R41: Pensionista | S41: PensionistaBanco de la Nación | T41: 16 | U41: 1 | Z41: ONP: D.L. 18846, Pensiones por Encargo (D.L. 20530), RTP, Electrolima, Empresa Nacional Tabaco | AA41: 13 | AB41: 29 | AP41: 39 | BC41: Clásica | BD41: Compra | BE41: 39 | BF41: ClásicaCompra39 | BG41: 0.275
Q42: Presidencia Consejo de Ministros | R42: Pensionista | S42: PensionistaPresidencia Consejo de Ministros | T42: 16 | U42: 1 | AP42: 40 | BC42: Clásica | BD42: Compra | BE42: 40 | BF42: ClásicaCompra40 | BG42: 0.275
Q43: Despacho Presidencial | R43: Pensionista | S43: PensionistaDespacho Presidencial | T43: 16 | U43: 1 | AP43: 41 | BC43: Clásica | BD43: Compra | BE43: 41 | BF43: ClásicaCompra41 | BG43: 0.275
Q44: Poder Judicial | R44: Pensionista | S44: PensionistaPoder Judicial | T44: 10 | U44: 24 | AP44: 42 | BC44: Clásica | BD44: Compra | BE44: 42 | BF44: ClásicaCompra42 | BG44: 0.275
Q45: Ministerio de Justicia | R45: Pensionista | S45: PensionistaMinisterio de Justicia | T45: 8 | U45: 23 | AP45: 43 | BC45: Clásica | BD45: Compra | BE45: 43 | BF45: ClásicaCompra43 | BG45: 0.275
Q46: Ministerio de Relaciones Exteriores | R46: Pensionista | S46: PensionistaMinisterio de Relaciones Exteriores | T46: 10 | U46: 24 | AP46: 44 | BC46: Clásica | BD46: Compra | BE46: 44 | BF46: ClásicaCompra44 | BG46: 0.275
Q47: Ministerio de Economía y Finanzas | R47: Pensionista | S47: PensionistaMinisterio de Economía y Finanzas | T47: 10 | U47: 24 | AP47: 45 | BC47: Clásica | BD47: Compra | BE47: 45 | BF47: ClásicaCompra45 | BG47: 0.275
Q48: Universidades Públicas | R48: Pensionista | S48: PensionistaUniversidades Públicas | T48: 11 | U48: 26 | AP48: 46 | BC48: Clásica | BD48: Compra | BE48: 46 | BF48: ClásicaCompra46 | BG48: 0.275
Q49: Contraloría General de la República | R49: Pensionista | S49: PensionistaContraloría General de la República | T49: 10 | U49: 24 | AP49: 47 | BC49: Clásica | BD49: Compra | BE49: 47 | BF49: ClásicaCompra47 | BG49: 0.275
Q50: Defensoría del Pueblo | R50: Pensionista | S50: PensionistaDefensoría del Pueblo | T50: 10 | U50: 24 | AP50: 48 | BC50: Clásica | BD50: Compra | BE50: 48 | BF50: ClásicaCompra48 | BG50: 0.275
Q51: Consejo Nacional de la Magistratura | R51: Pensionista | S51: PensionistaConsejo Nacional de la Magistratura | T51: 10 | U51: 24 | BC51: Clásica | BD51: Disposición de efectivo | BE51: 1 | BF51: =BC51&BD51&BE51 -> ClásicaDisposición de efectivo1 | BG51: 0.265
Q52: Ministerio Público | R52: Pensionista | S52: PensionistaMinisterio Público | T52: 10 | U52: 24 | BC52: Clásica | BD52: Disposición de efectivo | BE52: =+BE51+1 -> 2 | BF52: =BC52&BD52&BE52 -> ClásicaDisposición de efectivo2 | BG52: 0.265
Q53: Tribunal Constitucional | R53: Pensionista | S53: PensionistaTribunal Constitucional | T53: 10 | U53: 25 | BC53: Clásica | BD53: Disposición de efectivo | BE53: =+BE52+1 -> 3 | BF53: ClásicaDisposición de efectivo3 | BG53: 0.265
Q54: Congreso de la República | R54: Pensionista | S54: PensionistaCongreso de la República | T54: 10 | U54: 26 | BC54: Clásica | BD54: Disposición de efectivo | BE54: =+BE53+1 -> 4 | BF54: ClásicaDisposición de efectivo4 | BG54: 0.265
Q55: Jurado Nacional de Elecciones | R55: Pensionista | S55: PensionistaJurado Nacional de Elecciones | T55: 10 | U55: 24 | BC55: Clásica | BD55: Disposición de efectivo | BE55: 5 | BF55: ClásicaDisposición de efectivo5 | BG55: 0.265
Q56: Oficina Nacional de Procesos Electorales | R56: Pensionista | S56: PensionistaOficina Nacional de Procesos Electorales | T56: 10 | U56: 28 | BC56: Clásica | BD56: Disposición de efectivo | BE56: 6 | BF56: ClásicaDisposición de efectivo6 | BG56: 0.265
Q57: Registro Nacional de Identificación y Estado Civil | R57: Pensionista | S57: PensionistaRegistro Nacional de Identificación y Estado Civil | T57: 10 | U57: 24 | BC57: Clásica | BD57: Disposición de efectivo | BE57: 7 | BF57: ClásicaDisposición de efectivo7 | BG57: 0.265
Q58: Gobiernos Regionales: Unidades Ejecutoras de Agricultura | R58: Pensionista | S58: PensionistaGobiernos Regionales: Unidades Ejecutoras de Agricultura | T58: 10 | U58: 26 | BC58: Clásica | BD58: Disposición de efectivo | BE58: 8 | BF58: ClásicaDisposición de efectivo8 | BG58: 0.265
Q59: Ministerio de Cultura | R59: Pensionista | S59: PensionistaMinisterio de Cultura | T59: 10 | U59: 26 | BC59: Clásica | BD59: Disposición de efectivo | BE59: 9 | BF59: ClásicaDisposición de efectivo9 | BG59: 0.265
Q60: Ministerio de Educación: excepto UGEL 01, 03 y 07 | R60: Pensionista | S60: PensionistaMinisterio de Educación: excepto UGEL 01, 03 y 07 | T60: 10 | U60: 28 | BC60: Clásica | BD60: Disposición de efectivo | BE60: 10 | BF60: ClásicaDisposición de efectivo10 | BG60: 0.265
Q61: Gobiernos Regionales: Unidades Ejecutoras de Educación | R61: Pensionista | S61: PensionistaGobiernos Regionales: Unidades Ejecutoras de Educación | T61: 11 | U61: 26 | BC61: Clásica | BD61: Disposición de efectivo | BE61: 11 | BF61: ClásicaDisposición de efectivo11 | BG61: 0.265
Q62: Ministerio de Educación: UGEL 01, 03 y 07 | R62: Pensionista | S62: PensionistaMinisterio de Educación: UGEL 01, 03 y 07 | T62: 10 | U62: 24 | BC62: Clásica | BD62: Disposición de efectivo | BE62: 12 | BF62: ClásicaDisposición de efectivo12 | BG62: 0.25
Q63: Ministerio del Ambiente | R63: Pensionista | S63: PensionistaMinisterio del Ambiente | T63: 10 | U63: 28 | BC63: Clásica | BD63: Disposición de efectivo | BE63: 13 | BF63: ClásicaDisposición de efectivo13 | BG63: 0.265
Q64: Ministerio de Trabajo y Promoción del Empleo | R64: Pensionista | S64: PensionistaMinisterio de Trabajo y Promoción del Empleo | T64: 10 | U64: 27 | BC64: Clásica | BD64: Disposición de efectivo | BE64: 14 | BF64: ClásicaDisposición de efectivo14 | BG64: 0.265
Q65: Ministerio de Agricultura | R65: Pensionista | S65: PensionistaMinisterio de Agricultura | T65: 10 | U65: 26 | BC65: Clásica | BD65: Disposición de efectivo | BE65: 15 | BF65: ClásicaDisposición de efectivo15 | BG65: 0.265
Q66: Ministerio de Energía y Minas | R66: Pensionista | S66: PensionistaMinisterio de Energía y Minas | T66: 10 | U66: 26 | BC66: Clásica | BD66: Disposición de efectivo | BE66: 16 | BF66: ClásicaDisposición de efectivo16 | BG66: 0.265
Q67: Ministerio de Comercio Exterior y Turismo | R67: Pensionista | S67: =R67&Q67 -> PensionistaMinisterio de Comercio Exterior y Turismo | T67: 10 | U67: 24 | BC67: Clásica | BD67: Disposición de efectivo | BE67: 17 | BF67: ClásicaDisposición de efectivo17 | BG67: 0.265
Q68: Ministerio de Transporte y Comunicaciones | R68: Pensionista | S68: PensionistaMinisterio de Transporte y Comunicaciones | T68: 10 | U68: 26 | BC68: Clásica | BD68: Disposición de efectivo | BE68: 18 | BF68: ClásicaDisposición de efectivo18 | BG68: 0.265
Q69: Ministerio de Vivienda, Construcción y Saneamiento | R69: Pensionista | S69: PensionistaMinisterio de Vivienda, Construcción y Saneamiento | T69: 10 | U69: 26 | BC69: Clásica | BD69: Disposición de efectivo | BE69: 19 | BF69: ClásicaDisposición de efectivo19 | BG69: 0.265
Q70: Ministerio de la Producción | R70: Pensionista | S70: PensionistaMinisterio de la Producción | T70: 10 | U70: 24 | BC70: Clásica | BD70: Disposición de efectivo | BE70: 20 | BF70: ClásicaDisposición de efectivo20 | BG70: 0.265
Q71: Ministerio de la Mujer y Poblaciones Vulnerables | R71: Pensionista | S71: PensionistaMinisterio de la Mujer y Poblaciones Vulnerables | T71: 12 | U71: 26 | BC71: Clásica | BD71: Disposición de efectivo | BE71: 21 | BF71: ClásicaDisposición de efectivo21 | BG71: 0.265
Q72: Ministerio de Desarrollo e Inclusión Social | R72: Pensionista | S72: PensionistaMinisterio de Desarrollo e Inclusión Social | T72: 10 | U72: 26 | BC72: Clásica | BD72: Disposición de efectivo | BE72: 22 | BF72: ClásicaDisposición de efectivo22 | BG72: 0.265
Q73: Gobiernos Regionales: Todas las Unidades Ejecutoras excepto las de Educación y Agricultura | R73: Pensionista | S73: PensionistaGobiernos Regionales: Todas las Unidades Ejecutoras excepto las de Educación y Agricultura | T73: 10 | U73: 26 | BC73: Clásica | BD73: Disposición de efectivo | BE73: 23 | BF73: ClásicaDisposición de efectivo23 | BG73: 0.265
Q74: Ministerio de Defensa (FAP, Marina, Ejército) | R74: Pensionista | S74: PensionistaMinisterio de Defensa (FAP, Marina, Ejército) | T74: 10 | U74: 26 | BC74: Clásica | BD74: Disposición de efectivo | BE74: 24 | BF74: ClásicaDisposición de efectivo24 | BG74: 0.265
Q75: Ministerio de Salud | R75: Pensionista | S75: PensionistaMinisterio de Salud | T75: 10 | U75: 26 | BC75: Clásica | BD75: Disposición de efectivo | BE75: 25 | BF75: ClásicaDisposición de efectivo25 | BG75: 0.285
Q76: Gobiernos Locales (Municipalidades) (2) | R76: Pensionista | S76: PensionistaGobiernos Locales (Municipalidades) (2) | T76: 11 | U76: 25 | BC76: Clásica | BD76: Disposición de efectivo | BE76: 26 | BF76: ClásicaDisposición de efectivo26 | BG76: 0.285
Q77: Ministerio del Interior (PNP) | R77: Pensionista | S77: PensionistaMinisterio del Interior (PNP) | T77: 10 | U77: 24 | BC77: Clásica | BD77: Disposición de efectivo | BE77: 27 | BF77: ClásicaDisposición de efectivo27 | BG77: 0.285
Q78: ONP : D.L. 19990 y Ley 26790 | R78: Pensionista | S78: PensionistaONP : D.L. 19990 y Ley 26790 | T78: 10 | U78: 24 | BC78: Clásica | BD78: Disposición de efectivo | BE78: 28 | BF78: ClásicaDisposición de efectivo28 | BG78: 0.285
Q79: ONP: D.L. 18846, Pensiones por Encargo (D.L. 20530), RTP, Electrolima, Empresa Nacional Tabaco | R79: Pensionista | S79: PensionistaONP: D.L. 18846, Pensiones por Encargo (D.L. 20530), RTP, Electrolima, Empresa Nacional Tabaco | T79: 14 | U79: 29 | BC79: Clásica | BD79: Disposición de efectivo | BE79: 29 | BF79: ClásicaDisposición de efectivo29 | BG79: 0.285
T80: 4 | U80: 19 | BC80: Clásica | BD80: Disposición de efectivo | BE80: 30 | BF80: ClásicaDisposición de efectivo30 | BG80: 0.285
T81: 10 | U81: 24 | BC81: Clásica | BD81: Disposición de efectivo | BE81: 31 | BF81: ClásicaDisposición de efectivo31 | BG81: 0.285
T82: 10 | U82: 24 | BC82: Clásica | BD82: Disposición de efectivo | BE82: 32 | BF82: ClásicaDisposición de efectivo32 | BG82: 0.285
T83: 10 | U83: 24 | BC83: Clásica | BD83: Disposición de efectivo | BE83: 33 | BF83: ClásicaDisposición de efectivo33 | BG83: 0.285
T84: 10 | U84: 26 | BC84: Clásica | BD84: Disposición de efectivo | BE84: 34 | BF84: ClásicaDisposición de efectivo34 | BG84: 0.285
T85: 10 | U85: 24 | BC85: Clásica | BD85: Disposición de efectivo | BE85: 35 | BF85: ClásicaDisposición de efectivo35 | BG85: 0.285
T86: 10 | U86: 24 | BC86: Clásica | BD86: Disposición de efectivo | BE86: 36 | BF86: ClásicaDisposición de efectivo36 | BG86: 0.285
BC87: Clásica | BD87: Disposición de efectivo | BE87: 37 | BF87: ClásicaDisposición de efectivo37 | BG87: 0.305
BC88: Clásica | BD88: Disposición de efectivo | BE88: 38 | BF88: ClásicaDisposición de efectivo38 | BG88: 0.305
BC89: Clásica | BD89: Disposición de efectivo | BE89: 39 | BF89: ClásicaDisposición de efectivo39 | BG89: 0.305
BC90: Clásica | BD90: Disposición de efectivo | BE90: 40 | BF90: ClásicaDisposición de efectivo40 | BG90: 0.305
BC91: Clásica | BD91: Disposición de efectivo | BE91: 41 | BF91: ClásicaDisposición de efectivo41 | BG91: 0.305
BC92: Clásica | BD92: Disposición de efectivo | BE92: 42 | BF92: ClásicaDisposición de efectivo42 | BG92: 0.305
BC93: Clásica | BD93: Disposición de efectivo | BE93: 43 | BF93: ClásicaDisposición de efectivo43 | BG93: 0.305
BC94: Clásica | BD94: Disposición de efectivo | BE94: 44 | BF94: ClásicaDisposición de efectivo44 | BG94: 0.305
BC95: Clásica | BD95: Disposición de efectivo | BE95: 45 | BF95: ClásicaDisposición de efectivo45 | BG95: 0.305
BC96: Clásica | BD96: Disposición de efectivo | BE96: 46 | BF96: ClásicaDisposición de efectivo46 | BG96: 0.305
BC97: Clásica | BD97: Disposición de efectivo | BE97: 47 | BF97: ClásicaDisposición de efectivo47 | BG97: 0.305
BC98: Clásica | BD98: Disposición de efectivo | BE98: 48 | BF98: ClásicaDisposición de efectivo48 | BG98: 0.305
BC99: Gold | BD99: Compra | BE99: 1 | BF99: =BC99&BD99&BE99 -> GoldCompra1 | BG99: 0.215
BC100: Gold | BD100: Compra | BE100: =+BE99+1 -> 2 | BF100: GoldCompra2 | BG100: 0.215
BC101: Gold | BD101: Compra | BE101: =+BE100+1 -> 3 | BF101: GoldCompra3 | BG101: 0.215
BC102: Gold | BD102: Compra | BE102: =+BE101+1 -> 4 | BF102: GoldCompra4 | BG102: 0.215
BC103: Gold | BD103: Compra | BE103: 5 | BF103: GoldCompra5 | BG103: 0.215
BC104: Gold | BD104: Compra | BE104: 6 | BF104: GoldCompra6 | BG104: 0.215
BC105: Gold | BD105: Compra | BE105: 7 | BF105: GoldCompra7 | BG105: 0.215
BC106: Gold | BD106: Compra | BE106: 8 | BF106: GoldCompra8 | BG106: 0.215
BC107: Gold | BD107: Compra | BE107: 9 | BF107: GoldCompra9 | BG107: 0.215
BC108: Gold | BD108: Compra | BE108: 10 | BF108: GoldCompra10 | BG108: 0.215
BC109: Gold | BD109: Compra | BE109: 11 | BF109: GoldCompra11 | BG109: 0.215
BC110: Gold | BD110: Compra | BE110: 12 | BF110: GoldCompra12 | BG110: 0.25
BC111: Gold | BD111: Compra | BE111: 13 | BF111: GoldCompra13 | BG111: 0.215
BC112: Gold | BD112: Compra | BE112: 14 | BF112: GoldCompra14 | BG112: 0.215
BC113: Gold | BD113: Compra | BE113: 15 | BF113: GoldCompra15 | BG113: 0.215
BC114: Gold | BD114: Compra | BE114: 16 | BF114: GoldCompra16 | BG114: 0.215
BC115: Gold | BD115: Compra | BE115: 17 | BF115: GoldCompra17 | BG115: 0.215
BC116: Gold | BD116: Compra | BE116: 18 | BF116: GoldCompra18 | BG116: 0.215
BC117: Gold | BD117: Compra | BE117: 19 | BF117: GoldCompra19 | BG117: 0.215
BC118: Gold | BD118: Compra | BE118: 20 | BF118: GoldCompra20 | BG118: 0.215
BC119: Gold | BD119: Compra | BE119: 21 | BF119: GoldCompra21 | BG119: 0.215
BC120: Gold | BD120: Compra | BE120: 22 | BF120: GoldCompra22 | BG120: 0.215
BC121: Gold | BD121: Compra | BE121: 23 | BF121: GoldCompra23 | BG121: 0.215
BC122: Gold | BD122: Compra | BE122: 24 | BF122: GoldCompra24 | BG122: 0.215
BC123: Gold | BD123: Compra | BE123: 25 | BF123: GoldCompra25 | BG123: 0.235
BC124: Gold | BD124: Compra | BE124: 26 | BF124: GoldCompra26 | BG124: 0.235
BC125: Gold | BD125: Compra | BE125: 27 | BF125: GoldCompra27 | BG125: 0.235
BC126: Gold | BD126: Compra | BE126: 28 | BF126: GoldCompra28 | BG126: 0.235
BC127: Gold | BD127: Compra | BE127: 29 | BF127: GoldCompra29 | BG127: 0.235
BC128: Gold | BD128: Compra | BE128: 30 | BF128: GoldCompra30 | BG128: 0.235
BC129: Gold | BD129: Compra | BE129: 31 | BF129: GoldCompra31 | BG129: 0.235
BC130: Gold | BD130: Compra | BE130: 32 | BF130: GoldCompra32 | BG130: 0.235
BC131: Gold | BD131: Compra | BE131: 33 | BF131: GoldCompra33 | BG131: 0.235
BC132: Gold | BD132: Compra | BE132: 34 | BF132: =BC132&BD132&BE132 -> GoldCompra34 | BG132: 0.235
BC133: Gold | BD133: Compra | BE133: 35 | BF133: GoldCompra35 | BG133: 0.235
BC134: Gold | BD134: Compra | BE134: 36 | BF134: GoldCompra36 | BG134: 0.235
BC135: Gold | BD135: Compra | BE135: 37 | BF135: GoldCompra37 | BG135: 0.255
BC136: Gold | BD136: Compra | BE136: 38 | BF136: GoldCompra38 | BG136: 0.255
BC137: Gold | BD137: Compra | BE137: 39 | BF137: GoldCompra39 | BG137: 0.255
BC138: Gold | BD138: Compra | BE138: 40 | BF138: GoldCompra40 | BG138: 0.255
BC139: Gold | BD139: Compra | BE139: 41 | BF139: GoldCompra41 | BG139: 0.255
BC140: Gold | BD140: Compra | BE140: 42 | BF140: GoldCompra42 | BG140: 0.255
BC141: Gold | BD141: Compra | BE141: 43 | BF141: GoldCompra43 | BG141: 0.255
BC142: Gold | BD142: Compra | BE142: 44 | BF142: GoldCompra44 | BG142: 0.255
BC143: Gold | BD143: Compra | BE143: 45 | BF143: GoldCompra45 | BG143: 0.255
BC144: Gold | BD144: Compra | BE144: 46 | BF144: GoldCompra46 | BG144: 0.255
BC145: Gold | BD145: Compra | BE145: 47 | BF145: GoldCompra47 | BG145: 0.255
BC146: Gold | BD146: Compra | BE146: 48 | BF146: GoldCompra48 | BG146: 0.255
BC147: Gold | BD147: Disposición de efectivo | BE147: 1 | BF147: GoldDisposición de efectivo1 | BG147: 0.245
BC148: Gold | BD148: Disposición de efectivo | BE148: =+BE147+1 -> 2 | BF148: GoldDisposición de efectivo2 | BG148: 0.245
BC149: Gold | BD149: Disposición de efectivo | BE149: =+BE148+1 -> 3 | BF149: GoldDisposición de efectivo3 | BG149: 0.245
BC150: Gold | BD150: Disposición de efectivo | BE150: =+BE149+1 -> 4 | BF150: GoldDisposición de efectivo4 | BG150: 0.245
BC151: Gold | BD151: Disposición de efectivo | BE151: 5 | BF151: GoldDisposición de efectivo5 | BG151: 0.245
BC152: Gold | BD152: Disposición de efectivo | BE152: 6 | BF152: GoldDisposición de efectivo6 | BG152: 0.245
BC153: Gold | BD153: Disposición de efectivo | BE153: 7 | BF153: GoldDisposición de efectivo7 | BG153: 0.245
BC154: Gold | BD154: Disposición de efectivo | BE154: 8 | BF154: GoldDisposición de efectivo8 | BG154: 0.245
BC155: Gold | BD155: Disposición de efectivo | BE155: 9 | BF155: GoldDisposición de efectivo9 | BG155: 0.245
BC156: Gold | BD156: Disposición de efectivo | BE156: 10 | BF156: GoldDisposición de efectivo10 | BG156: 0.245
BC157: Gold | BD157: Disposición de efectivo | BE157: 11 | BF157: GoldDisposición de efectivo11 | BG157: 0.245
BC158: Gold | BD158: Disposición de efectivo | BE158: 12 | BF158: GoldDisposición de efectivo12 | BG158: 0.245
BC159: Gold | BD159: Disposición de efectivo | BE159: 13 | BF159: GoldDisposición de efectivo13 | BG159: 0.245
BC160: Gold | BD160: Disposición de efectivo | BE160: 14 | BF160: GoldDisposición de efectivo14 | BG160: 0.245
BC161: Gold | BD161: Disposición de efectivo | BE161: 15 | BF161: GoldDisposición de efectivo15 | BG161: 0.245
BC162: Gold | BD162: Disposición de efectivo | BE162: 16 | BF162: GoldDisposición de efectivo16 | BG162: 0.245
BC163: Gold | BD163: Disposición de efectivo | BE163: 17 | BF163: GoldDisposición de efectivo17 | BG163: 0.245
BC164: Gold | BD164: Disposición de efectivo | BE164: 18 | BF164: GoldDisposición de efectivo18 | BG164: 0.245
BC165: Gold | BD165: Disposición de efectivo | BE165: 19 | BF165: GoldDisposición de efectivo19 | BG165: 0.245
BC166: Gold | BD166: Disposición de efectivo | BE166: 20 | BF166: GoldDisposición de efectivo20 | BG166: 0.245
BC167: Gold | BD167: Disposición de efectivo | BE167: 21 | BF167: GoldDisposición de efectivo21 | BG167: 0.245
BC168: Gold | BD168: Disposición de efectivo | BE168: 22 | BF168: GoldDisposición de efectivo22 | BG168: 0.245
BC169: Gold | BD169: Disposición de efectivo | BE169: 23 | BF169: GoldDisposición de efectivo23 | BG169: 0.245
BC170: Gold | BD170: Disposición de efectivo | BE170: 24 | BF170: GoldDisposición de efectivo24 | BG170: 0.245
BC171: Gold | BD171: Disposición de efectivo | BE171: 25 | BF171: GoldDisposición de efectivo25 | BG171: 0.265
BC172: Gold | BD172: Disposición de efectivo | BE172: 26 | BF172: GoldDisposición de efectivo26 | BG172: 0.265
BC173: Gold | BD173: Disposición de efectivo | BE173: 27 | BF173: GoldDisposición de efectivo27 | BG173: 0.265
BC174: Gold | BD174: Disposición de efectivo | BE174: 28 | BF174: GoldDisposición de efectivo28 | BG174: 0.265
BC175: Gold | BD175: Disposición de efectivo | BE175: 29 | BF175: GoldDisposición de efectivo29 | BG175: 0.265
BC176: Gold | BD176: Disposición de efectivo | BE176: 30 | BF176: GoldDisposición de efectivo30 | BG176: 0.265
BC177: Gold | BD177: Disposición de efectivo | BE177: 31 | BF177: GoldDisposición de efectivo31 | BG177: 0.265
BC178: Gold | BD178: Disposición de efectivo | BE178: 32 | BF178: GoldDisposición de efectivo32 | BG178: 0.265
BC179: Gold | BD179: Disposición de efectivo | BE179: 33 | BF179: GoldDisposición de efectivo33 | BG179: 0.265
BC180: Gold | BD180: Disposición de efectivo | BE180: 34 | BF180: =BC180&BD180&BE180 -> GoldDisposición de efectivo34 | BG180: 0.265
BC181: Gold | BD181: Disposición de efectivo | BE181: 35 | BF181: GoldDisposición de efectivo35 | BG181: 0.265
BC182: Gold | BD182: Disposición de efectivo | BE182: 36 | BF182: GoldDisposición de efectivo36 | BG182: 0.265
BC183: Gold | BD183: Disposición de efectivo | BE183: 37 | BF183: GoldDisposición de efectivo37 | BG183: 0.285
BC184: Gold | BD184: Disposición de efectivo | BE184: 38 | BF184: GoldDisposición de efectivo38 | BG184: 0.285
BC185: Gold | BD185: Disposición de efectivo | BE185: 39 | BF185: GoldDisposición de efectivo39 | BG185: 0.285
BC186: Gold | BD186: Disposición de efectivo | BE186: 40 | BF186: GoldDisposición de efectivo40 | BG186: 0.285
BC187: Gold | BD187: Disposición de efectivo | BE187: 41 | BF187: GoldDisposición de efectivo41 | BG187: 0.285
BC188: Gold | BD188: Disposición de efectivo | BE188: 42 | BF188: GoldDisposición de efectivo42 | BG188: 0.285
BC189: Gold | BD189: Disposición de efectivo | BE189: 43 | BF189: GoldDisposición de efectivo43 | BG189: 0.285
BC190: Gold | BD190: Disposición de efectivo | BE190: 44 | BF190: GoldDisposición de efectivo44 | BG190: 0.285
BC191: Gold | BD191: Disposición de efectivo | BE191: 45 | BF191: GoldDisposición de efectivo45 | BG191: 0.285
BC192: Gold | BD192: Disposición de efectivo | BE192: 46 | BF192: GoldDisposición de efectivo46 | BG192: 0.285
BC193: Gold | BD193: Disposición de efectivo | BE193: 47 | BF193: GoldDisposición de efectivo47 | BG193: 0.285
BC194: Gold | BD194: Disposición de efectivo | BE194: 48 | BF194: GoldDisposición de efectivo48 | BG194: 0.285
BC195: Platinium | BD195: Compra | BE195: 1 | BF195: PlatiniumCompra1 | BG195: 0.195
BC196: Platinium | BD196: Compra | BE196: =+BE195+1 -> 2 | BF196: PlatiniumCompra2 | BG196: 0.195
BC197: Platinium | BD197: Compra | BE197: =+BE196+1 -> 3 | BF197: PlatiniumCompra3 | BG197: 0.195
BC198: Platinium | BD198: Compra | BE198: =+BE197+1 -> 4 | BF198: PlatiniumCompra4 | BG198: 0.195
BC199: Platinium | BD199: Compra | BE199: 5 | BF199: PlatiniumCompra5 | BG199: 0.195
BC200: Platinium | BD200: Compra | BE200: 6 | BF200: PlatiniumCompra6 | BG200: 0.195
BC201: Platinium | BD201: Compra | BE201: 7 | BF201: PlatiniumCompra7 | BG201: 0.195
... 185 more rows

Sheet Simulador_TC
B3: Simulador de Tarjeta de Crédito Sin Seguro de Desgravamen
B4: Simulación de la Línea de Crédito
B5: Situación laboral:
B7: Sector donde labora:
B9: Promedio de Abonos: | D9: S/ | E9: 4500 | F9: Ingresar datos
B11: Cuota en el Sistema Financiero: | D11: S/ | E11: 300 | F11: Ingresar datos
B13: Cuota de Préstamo Multired BN: | D13: S/ | E13: 0 | F13: Ingresar datos
B15: Cuota de Crédito Hipotecario BN: | D15: S/ | E15: 0 | F15: Ingresar datos
B17: Tipo de Seguro para Linea de Crédito:
B19: Envío de Estado de Cuenta:
B21: Máxima Linea de Crédito: | D21: S/ | E21: =IF(C169<1000,0,IF(C169<=5000,C169,IF(C169>5000,5000,0))) -> 5000 | F21: Campo calculado
B23: Tarjetas a las que califica: | E23: =C176 -> Clásica sin Seg. Desgravamen | F23: Campo calculado
B25: Simulación del uso de la línea
B26: Seleccionar tipo de tarjeta
B28: Tipo de Seguro para Compras o Disp.Efect.:
B30: Tipo de Consumo:
B32: Ingrese el monto de disposición de la línea: | D32: S/ | E32: 1500 | F32: Ingresar datos
B34: Ingrese el número de cuotas:
B148: Cálculo de la Línea Máxima
B149: Deudas Sist. Finan. | C149: =E11+E13+E15 -> 300
B150: Seguro Desgravamen | C150: =VLOOKUP(Input!AF3,Input!AD3:AE6,2,FALSE) -> 0
B151: Envío de EECC a domic. | C151: =VLOOKUP(Input!AU3,Input!AS3:AT4,2,FALSE) -> 0
B152: Total Pago Mensual | C152: =SUM(C149:C151) -> 300 | D152: C13 | E152: =+C152/$C$154 -> 0.06666666667
B154: Ingreso Estimado | C154: =E9 -> 4500 | D154: C15
B155: Nivel máximo Cuota/Ing. | C155: 0.25 | D155: C16 Fijo
B156: Factor de Actualizacion
B157: Factor de la Línea | C157: =+ROUND((C155-(C152/C154))*C156,7) -> 0
B158: Línea Máxima | C158: =IF(ROUND(C157*C154,2)<300,0,IF(ROUND(C157*C154,2)>50000,50000,ROUND(C157*C154,2))) -> 0 | F158: =+E152+E165 -> 0.25
B159: Cuota (Sin comisiones) | C159: =ROUND(C158/C156,2) -> 
B160: Cuota (Con comisiones) | C160: =+C159+C150+#REF!+C151 -> 
B161: Ratio Cuota/Ingreso | C161: =+(C160+C149)/C154 -> 
B162: Linea por ingreso | C162: =ROUND(IF(C154=0,0,IF(C154<=1000,1*C154,IF(AND(C154>1000,C154<=5000),1.3*C154,IF(AND(C154>5000,C154<8000),2*C154,IF(AND(C154>8000,C154<=10000),2.5*C154,3*C154))))),2) -> 5850
B163: Linea Máxima | C163: =TRUNC(MIN(C162,C158),0) -> 0
B165: MCM | C165: =((C155*C154-C152)) -> 825 | D165: C26 | E165: =+C165/$C$154 -> 0.1833333333
B166: Factor Cuota | C166: =(((1+C173)^(C174))*C173/((1+C173)^(C174)-1))*(1-C168) -> 0.02366487419 | D166: C27
B167: Factor Revolvente | C167: =(C173+1/C174)*C168 -> 0.02298756923 | D167: C28
B168: % Consumo Revolvente | C168: 0.43 | D168: C29
B169: Linea Máxima | C169: =TRUNC(IF((C155*C154-C152)<=0,0,C165/((C166+C167))),0) -> 17683
B170: Nro Veces el Ingreso | C170: =C165/((C166+C167)*C154) -> 3.929769159
B171: Factor de Actualización:
B172: Tasa Interés (TEA) | C172: 0.47 | D172: C33 | E172: TEA para máximizar la Linea
B173: TEM | C173: =ROUND((1+C172)^(1/12)-1,8) -> 0.03262613 | D173: C34
B174: Plazo | C174: 48 | E174: Plazo Máximo
B176: Tipo de tarjeta de crédito | C176: Clásica sin Seg. Desgravamen
B178: Tope de consumo | C178: =IF(Input!$G$3="Compra",E21*C179,C180*E21) -> 5000
B179: % Compras | C179: 1
B180: % Disposición de Efectivo | C180: 0.3

Sheet Cronograma
U1: =SI(S7=12;"01";SI(Y(R7>O8;O9<O8);S7+2;S7+1))
R2: MENSUAL | S2: DIARIO
B3: Cronograma de pagos - Tarjeta de Crédito Sin Seguro de Desgravamen | P3: Tasa Efectiva Anual (TEA) | Q3: =Input!AW3 -> 0.36 | R3: =((Q3+1)^(1/12)-1) -> 0.02595483466 | S3: =((Q3+1)^(1/360)-1) -> 0.0008544890339
P4: Tasa Nominal Anual (TNA) | Q4: =360*((1+Q3)^(1/360)-1) -> 0.3076160522 | R4: =Q4/12 -> 0.02563467102 | S4: =Q4/360 -> 0.0008544890339 | V4: =((1+$Q$3)^((S18-R18)/360)-1)*$Q$11 -> 31.06579065
B5: Producto | E5: =Input!D3 -> Clásica Sin Seg. Desgravamen | P5: Tasa de seguro de desgravamen | Q5: =Input!AN9 -> 0
B6: Tipo de consumo | E6: =Input!G3 -> Compra | R6: Día | S6: Mes | T6: Año
B7: Fecha de Consumo | E7: =+Q7 -> 2026-04-22 | N7: Día de Compra | O7: =DAY(Q7) -> 22 | P7: Fecha de compra | Q7: =TODAY() -> 2026-04-22 | R7: =+O7 -> 22 | S7: =MONTH(Q7) -> 4 | T7: =YEAR(Q7) -> 2026
B8: Monto de consumo S/ | E8: =Simulador_TC!E32 -> 1500 | N8: Día de Facturación | O8: =+Input!X3 -> 4 | P8: Fecha de facturación | Q8: =TEXT(CONCATENATE(O8,"/",S9,"/",T9),"dd/mm/yyyy") -> 04/05/2026 | R8: =+O8 -> 4 | S8: =MONTH(Q8) -> 5 | T8: =YEAR(Q8) -> 2026
B9: Número de Cuotas Mensuales | E9: =Input!AQ3 -> 17 | N9: Día de pago | O9: =Input!W3 -> 16 | P9: Fecha de Pago | Q9: =TEXT(IF(AND(R8=R7,O8<O9),CONCATENATE(O9,"/",S9,"/",T9),IF(R8=R7,CONCATENATE(O9,"/",S9+1,"/",T9),IF(S7=12,CONCATENATE(R9,"/","01","/",T9),CONCATENATE(R9,"/",S9,"/",T9)))),"dd/mm/yyyy") -> 16/05/2026 | R9: =+O9 -> 16 | S9: =IF(S7=12,"01",IF(AND(R7>O8,O9<O8),S7+2,S7+1)) -> 5 | T9: =IF(S7=12,T7+1,T7) -> 2026
B10: Tipo de Seguro | E10: =Input!AN3 -> Sin Seguro de Desgravamen | P10: Numero de cuotas | Q10: =VALUE(Input!AQ3) -> 17
B11: Tasa de Seguro de Desgravamen | E11: =Input!AN9 -> 0 | P11: Imprte de compra | Q11: =VALUE(Simulador_TC!E32) -> 1500
B12: Tasa de Interés Efectiva Anual Fija (TEA) | E12: =Q3 -> 0.36 | P12: TCEA | Q12: =XIRR(X17:X65,S17:S65) -> 0.365706414
B13: Tasa de Costo Efectiva Anual (TCEA) | E13: =+Q12 -> 0.365706414 | P13: TCEA Buscar Objetivo
R14: =IF(AND(R7=R8,O8<O9),S9,S9+1) -> 6 | S14: =SI(Y(R7=R8;O8<O9);S9;S9+1)
B16: Periodo | C16: Fecha de Facturación | D16: Fecha de Pago | E16: Interés S/ | F16: Amortización S/ | G16: Cuota Sin SD S/ | H16: Saldo Sin SD S/ | I16: Seguro de Desgravamen S/ | J16: Cuota Con SD S/ | K16: Saldo Con SD S/ | P16: Fecha de Facturación | Q16: Nro de cuotas | R16: Fecha inicio | S16: Fecha de Pago | T16: Días calculados | U16: Dias acumulados INMA | V16: FAS1 | W16: FAS | X16: Cuota Sin SD | Y16: Amortización Sin SD | Z16: Saldo Sin SD | AA16: FACT | AB16: Interes Cuota | AC16: Exceso Interes | AD16: Saldo Importe c/Exceso Interes | AE16: Nuevo interes cuota *exceso | AF16: Capital cuota *exceso | AG16: nueva Cuota AJUSTADA | AH16: Seguro de Desgravamen
B17: =Q17 -> 0 | C17: =+S17 -> 2026-04-22 | D17: =+E7 -> 2026-04-22 | G17: =-Q11 -> -1500 | H17: =+Z18 -> 1500 | Q17: 0 | R17: =+Q7 -> 2026-04-22 | S17: =Q7 -> 2026-04-22 | X17: =-Q11 -> -1500
B18: 1 | C18: =+P18 -> 04/05/2026 | D18: =+S18 -> 16/05/2026 | E18: =+AB18 -> 31.06 | F18: =IF(B18="Total",SUM($F17:F$18),IF(B18="","",Y18)) -> 78.98 | G18: =+X18 -> 110.04 | H18: =IF(B18="Total","",IF(B18="","",Z19)) -> 1421.02 | I18: =+AH18 -> 0 | P18: =+Q8 -> 04/05/2026 | Q18: =+IF(Q17=VALUE($Q$10),"Total",IF(Q17="Total","",IF(Q17="","",Q17+1))) -> 1 | R18: =+R17 -> 2026-04-22 | S18: =+Q9 -> 16/05/2026 | T18: =IF(OR(Q18="",Q18="Total"),0,S18-R18) -> 24 | U18: =+T18 -> 24 | V18: =IF(Q18="Total","-",TRUNC(ROUND(((Q$4/360)+1)^U18,8),8)) -> 1.02071053 | W18: =IF(OR(Q18="Total",Q18=""),0,TRUNC(ROUND((1/V18),8),8)) -> 0.97970969 | X18: =IF(OR(Q18="",Q18="Total"),0,IF(Q18=$Q$10,Z18+AB18,TRUNC($Q$11*(1/$W$66),2))) -> 110.04 | Y18: =+X18-AB18 -> 78.98 | Z18: =$Q$11 -> 1500 | AA18: =TRUNC(ROUND(((Q$4/360)+1)^T18,8),8)-1 -> 0.02071053 | AB18: =IF(OR(Q18="",Q18="Total")," ",TRUNC(Z18*AA18,2)) -> 31.06 | AC18: =IF(AB18>X18,AB18-X18,0) -> 0 | AD18: =Z18+AC18 -> 1500 | AE18: =IF(AB18>X18,X18,AB18) -> 31.06 | AF18: =X18-AE18 -> 78.98 | AG18: =AE18+AF18 -> 110.04 | AH18: =IF($Q$5*Z18>=8.9,8.9,$Q$5*Z18) -> 0
B19: 2 | C19: =IF(OR(B19="Total",B19=""),"",P19) -> 2026-06-04 | D19: =IF(OR(B19="Total",B19=""),"",S19) -> 2026-06-16 | E19: =IF(B19="Total",SUM($E$18:E18),IF(B19="","",AB19)) -> 38.12 | F19: =IF(B19="Total",SUM($F$18:F18),IF(B19="","",Y19)) -> 71.92 | G19: =IF(B19="Total",SUM($G$18:G18),IF(B19="","",X19)) -> 110.04 | H19: 1349.1 | P19: =EDATE(P18,1) -> 2026-06-04 | Q19: 2 | R19: =IF(S19="-","-",S18+1) -> 2026-05-17 | S19: =IF(Q18=VALUE($Q$10),0,IF(Q18="Total",0,IF(Q18="",0,DATE(YEAR(S18),MONTH(S18)+1,Input!W$3)))) -> 2026-06-16 | T19: =IF(OR(Q19="",Q19="Total"),0,S19-R19+1) -> 31 | U19: =IF(Q19="Total","-",U18+T19) -> 55 | V19: =IF(Q19="Total","-",TRUNC(ROUND(((Q$4/360)+1)^U19,8),8)) -> 1.04809772 | W19: =IF(OR(Q19="Total",Q19=""),0,TRUNC(ROUND((1/V19),8),8)) -> 0.95410951 | X19: =IF(OR(Q19="",Q19="Total"),0,IF(Q19=$Q$10,Z19+AB19,TRUNC($Q$11*(1/$W$66),2))) -> 110.04 | Y19: 71.92 | Z19: =IF(OR(B18="",B18="Total"),"",AD18-AF18) -> 1421.02 | AA19: =TRUNC(ROUND(((Q$4/360)+1)^T19,8),8)-1 -> 0.0268315 | AB19: 38.12 | AC19: =IF(AB19>X19,AB19-X19,0) -> 0 | AD19: =Z19-AC18+AC19 -> 1421.02 | AE19: =IF(AB19>X19,X19,AB19) -> 38.12 | AF19: 71.92 | AG19: =AE19+AF19 -> 110.04 | AH19: =IF($Q$5*Z19>=8.9,8.9,$Q$5*Z19) -> 0
B20: 3 | C20: 2026-07-04 | D20: 2026-07-16 | E20: =IF(B20="Total",SUM($E$18:E19),IF(B20="","",AB20)) -> 35.01 | F20: =IF(B20="Total",SUM($F$18:F19),IF(B20="","",Y20)) -> 75.03 | G20: =IF(B20="Total",SUM($G$18:G19),IF(B20="","",X20)) -> 110.04 | H20: 1274.07 | P20: =EDATE(P19,1) -> 2026-07-04 | Q20: 3 | R20: =IF(S20="-","-",S19+1) -> 2026-06-17 | S20: =IF(Q19=VALUE($Q$10),0,IF(Q19="Total",0,IF(Q19="",0,DATE(YEAR(S19),MONTH(S19)+1,Input!W$3)))) -> 2026-07-16 | T20: =IF(OR(Q20="",Q20="Total"),0,S20-R20+1) -> 30 | U20: 85 | V20: 1.07530093 | W20: 0.92997223 | X20: =IF(OR(Q20="",Q20="Total"),0,IF(Q20=$Q$10,Z20+AB20,TRUNC($Q$11*(1/$W$66),2))) -> 110.04 | Y20: 75.03 | Z20: 1349.1 | AA20: 0.02595483 | AB20: 35.01 | AC20: =IF(AB20>X20,AB20-X20,0) -> 0 | AD20: =Z20-AC19+AC20 -> 1349.1 | AE20: 35.01 | AF20: 75.03 | AG20: 110.04 | AH20: =IF($Q$5*Z20>=8.9,8.9,$Q$5*Z20) -> 0
B21: 4 | C21: 2026-08-04 | D21: 2026-08-16 | E21: =IF(B21="Total",SUM($E$18:E20),IF(B21="","",AB21)) -> 34.18 | F21: =IF(B21="Total",SUM($F$18:F20),IF(B21="","",Y21)) -> 75.86 | G21: =IF(B21="Total",SUM($G$18:G20),IF(B21="","",X21)) -> 110.04 | H21: 1198.21 | P21: 2026-08-04 | Q21: 4 | R21: 2026-07-17 | S21: =IF(Q20=VALUE($Q$10),0,IF(Q20="Total",0,IF(Q20="",0,DATE(YEAR(S20),MONTH(S20)+1,Input!W$3)))) -> 2026-08-16 | T21: 31 | U21: 116 | V21: 1.10415287 | W21: 0.90567169 | X21: =IF(OR(Q21="",Q21="Total"),0,IF(Q21=$Q$10,Z21+AB21,TRUNC($Q$11*(1/$W$66),2))) -> 110.04 | Y21: 75.86 | Z21: 1274.07 | AA21: 0.0268315 | AB21: 34.18 | AC21: =IF(AB21>X21,AB21-X21,0) -> 0 | AD21: =Z21-AC20+AC21 -> 1274.07 | AE21: 34.18 | AF21: 75.86 | AG21: 110.04 | AH21: 0
B22: 5 | C22: 2026-09-04 | D22: 2026-09-16 | E22: =IF(B22="Total",SUM($E$18:E21),IF(B22="","",AB22)) -> 32.14 | F22: =IF(B22="Total",SUM($F$18:F21),IF(B22="","",Y22)) -> 77.9 | G22: =IF(B22="Total",SUM($G$18:G21),IF(B22="","",X22)) -> 110.04 | H22: 1120.31 | P22: 2026-09-04 | Q22: 5 | R22: 2026-08-17 | S22: =IF(Q21=VALUE($Q$10),0,IF(Q21="Total",0,IF(Q21="",0,DATE(YEAR(S21),MONTH(S21)+1,Input!W$3)))) -> 2026-09-16 | T22: 31 | U22: 147 | V22: 1.13377894 | W22: 0.88200615 | X22: 110.04 | Y22: 77.9 | Z22: 1198.21 | AA22: 0.0268315 | AB22: 32.14 | AC22: 0 | AD22: =Z22-AC21+AC22 -> 1198.21 | AE22: 32.14 | AF22: 77.9 | AG22: 110.04 | AH22: 0
B23: 6 | C23: 2026-10-04 | D23: 2026-10-16 | E23: =IF(B23="Total",SUM($E$18:E22),IF(B23="","",AB23)) -> 29.07 | F23: =IF(B23="Total",SUM($F$18:F22),IF(B23="","",Y23)) -> 80.97 | G23: =IF(B23="Total",SUM($G$18:G22),IF(B23="","",X23)) -> 110.04 | H23: 1039.34 | P23: 2026-10-04 | Q23: 6 | R23: 2026-09-17 | S23: =IF(Q22=VALUE($Q$10),0,IF(Q22="Total",0,IF(Q22="",0,DATE(YEAR(S22),MONTH(S22)+1,Input!W$3)))) -> 2026-10-16 | T23: 30 | U23: 177 | V23: 1.16320599 | W23: 0.85969296 | X23: 110.04 | Y23: 80.97 | Z23: 1120.31 | AA23: 0.02595483 | AB23: 29.07 | AC23: 0 | AD23: 1120.31 | AE23: 29.07 | AF23: 80.97 | AG23: 110.04 | AH23: 0
B24: 7 | C24: 2026-11-04 | D24: 2026-11-16 | E24: =IF(B24="Total",SUM($E$18:E23),IF(B24="","",AB24)) -> 27.88 | F24: =IF(B24="Total",SUM($F$18:F23),IF(B24="","",Y24)) -> 82.16 | G24: =IF(B24="Total",SUM($G$18:G23),IF(B24="","",X24)) -> 110.04 | H24: 957.18 | P24: 2026-11-04 | Q24: 7 | R24: 2026-10-17 | S24: =IF(Q23=VALUE($Q$10),0,IF(Q23="Total",0,IF(Q23="",0,DATE(YEAR(S23),MONTH(S23)+1,Input!W$3)))) -> 2026-11-16 | T24: 31 | U24: 208 | V24: 1.19441655 | W24: 0.83722885 | X24: 110.04 | Y24: 82.16 | Z24: 1039.34 | AA24: 0.0268315 | AB24: 27.88 | AC24: 0 | AD24: 1039.34 | AE24: 27.88 | AF24: 82.16 | AG24: 110.04 | AH24: 0
B25: 8 | C25: 2026-12-04 | D25: 2026-12-16 | E25: =IF(B25="Total",SUM($E$18:E24),IF(B25="","",AB25)) -> 24.84 | F25: =IF(B25="Total",SUM($F$18:F24),IF(B25="","",Y25)) -> 85.2 | G25: =IF(B25="Total",SUM($G$18:G24),IF(B25="","",X25)) -> 110.04 | H25: 871.98 | P25: 2026-12-04 | Q25: 8 | R25: 2026-11-17 | S25: =IF(Q24=VALUE($Q$10),0,IF(Q24="Total",0,IF(Q24="",0,DATE(YEAR(S24),MONTH(S24)+1,Input!W$3)))) -> 2026-12-16 | T25: 30 | U25: 238 | V25: 1.22541744 | W25: 0.81604845 | X25: 110.04 | Y25: 85.2 | Z25: 957.18 | AA25: 0.02595483 | AB25: 24.84 | AC25: 0 | AD25: 957.18 | AE25: 24.84 | AF25: 85.2 | AG25: 110.04 | AH25: 0
B26: 9 | C26: 2027-01-04 | D26: 2027-01-16 | E26: =IF(B26="Total",SUM($E$18:E25),IF(B26="","",AB26)) -> 23.39 | F26: =IF(B26="Total",SUM($F$18:F25),IF(B26="","",Y26)) -> 86.65 | G26: =IF(B26="Total",SUM($G$18:G25),IF(B26="","",X26)) -> 110.04 | H26: 785.33 | P26: 2027-01-04 | Q26: 9 | R26: 2026-12-17 | S26: =IF(Q25=VALUE($Q$10),0,IF(Q25="Total",0,IF(Q25="",0,DATE(YEAR(S25),MONTH(S25)+1,Input!W$3)))) -> 2027-01-16 | T26: 31 | U26: 269 | V26: 1.25829723 | W26: 0.79472479 | X26: 110.04 | Y26: 86.65 | Z26: 871.98 | AA26: 0.0268315 | AB26: 23.39 | AC26: 0 | AD26: 871.98 | AE26: 23.39 | AF26: 86.65 | AG26: 110.04 | AH26: 0
B27: 10 | C27: 2027-02-04 | D27: 2027-02-16 | E27: =IF(B27="Total",SUM($E$18:E26),IF(B27="","",AB27)) -> 21.07 | F27: =IF(B27="Total",SUM($F$18:F26),IF(B27="","",Y27)) -> 88.97 | G27: =IF(B27="Total",SUM($G$18:G26),IF(B27="","",X27)) -> 110.04 | H27: 696.36 | P27: 2027-02-04 | Q27: 10 | R27: 2027-01-17 | S27: =IF(Q26=VALUE($Q$10),0,IF(Q26="Total",0,IF(Q26="",0,DATE(YEAR(S26),MONTH(S26)+1,Input!W$3)))) -> 2027-02-16 | T27: 31 | U27: =IF(Q27="Total","-",U26+T27) -> 300 | V27: 1.29205923 | W27: 0.77395833 | X27: 110.04 | Y27: 88.97 | Z27: 785.33 | AA27: 0.0268315 | AB27: 21.07 | AC27: 0 | AD27: 785.33 | AE27: 21.07 | AF27: 88.97 | AG27: 110.04 | AH27: 0
B28: 11 | C28: 2027-03-04 | D28: 2027-03-16 | E28: =IF(B28="Total",SUM($E$18:E27),IF(B28="","",AB28)) -> 16.85 | F28: =IF(B28="Total",SUM($F$18:F27),IF(B28="","",Y28)) -> 93.19 | G28: =IF(B28="Total",SUM($G$18:G27),IF(B28="","",X28)) -> 110.04 | H28: 603.17 | P28: 2027-03-04 | Q28: 11 | R28: 2027-02-17 | S28: =IF(Q27=VALUE($Q$10),0,IF(Q27="Total",0,IF(Q27="",0,DATE(YEAR(S27),MONTH(S27)+1,Input!W$3)))) -> 2027-03-16 | T28: 28 | U28: 328 | V28: 1.3233319 | W28: 0.75566832 | X28: 110.04 | Y28: 93.19 | Z28: 696.36 | AA28: 0.02420375 | AB28: 16.85 | AC28: 0 | AD28: 696.36 | AE28: 16.85 | AF28: =X28-AE28 -> 93.19 | AG28: 110.04 | AH28: 0
B29: 12 | C29: 2027-04-04 | D29: 2027-04-16 | E29: =IF(B29="Total",SUM($E$18:E28),IF(B29="","",AB29)) -> 16.18 | F29: =IF(B29="Total",SUM($F$18:F28),IF(B29="","",Y29)) -> 93.86 | G29: =IF(B29="Total",SUM($G$18:G28),IF(B29="","",X29)) -> 110.04 | H29: 509.31 | P29: 2027-04-04 | Q29: 12 | R29: 2027-03-17 | S29: =IF(Q28=VALUE($Q$10),0,IF(Q28="Total",0,IF(Q28="",0,DATE(YEAR(S28),MONTH(S28)+1,Input!W$3)))) -> 2027-04-16 | T29: 31 | U29: 359 | V29: 1.35883889 | W29: 0.73592242 | X29: 110.04 | Y29: 93.86 | Z29: 603.17 | AA29: 0.0268315 | AB29: 16.18 | AC29: 0 | AD29: 603.17 | AE29: 16.18 | AF29: =X29-AE29 -> 93.86 | AG29: 110.04 | AH29: 0
B30: 13 | C30: 2027-05-04 | D30: 2027-05-16 | E30: =IF(B30="Total",SUM($E$18:E29),IF(B30="","",AB30)) -> 13.21 | F30: =IF(B30="Total",SUM($F$18:F29),IF(B30="","",Y30)) -> 96.83 | G30: =IF(B30="Total",SUM($G$18:G29),IF(B30="","",X30)) -> 110.04 | H30: 412.48 | P30: 2027-05-04 | Q30: 13 | R30: 2027-04-17 | S30: =IF(Q29=VALUE($Q$10),0,IF(Q29="Total",0,IF(Q29="",0,DATE(YEAR(S29),MONTH(S29)+1,Input!W$3)))) -> 2027-05-16 | T30: 30 | U30: 389 | V30: 1.39410733 | W30: 0.71730489 | X30: 110.04 | Y30: 96.83 | Z30: 509.31 | AA30: 0.02595483 | AB30: 13.21 | AC30: 0 | AD30: 509.31 | AE30: 13.21 | AF30: =X30-AE30 -> 96.83 | AG30: 110.04 | AH30: =IF($Q$5*Z30>=8.9,8.9,$Q$5*Z30) -> 0
B31: 14 | C31: 2027-06-04 | D31: 2027-06-16 | E31: =IF(B31="Total",SUM($E$18:E30),IF(B31="","",AB31)) -> 11.06 | F31: =IF(B31="Total",SUM($F$18:F30),IF(B31="","",Y31)) -> 98.98 | G31: =IF(B31="Total",SUM($G$18:G30),IF(B31="","",X31)) -> 110.04 | H31: 313.5 | P31: 2027-06-04 | Q31: 14 | R31: =IF(S31="-","-",S30+1) -> 2027-05-17 | S31: =IF(Q30=VALUE($Q$10),0,IF(Q30="Total",0,IF(Q30="",0,DATE(YEAR(S30),MONTH(S30)+1,Input!W$3)))) -> 2027-06-16 | T31: 31 | U31: 420 | V31: 1.43151332 | W31: 0.69856144 | X31: 110.04 | Y31: 98.98 | Z31: 412.48 | AA31: 0.0268315 | AB31: 11.06 | AC31: 0 | AD31: 412.48 | AE31: 11.06 | AF31: 98.98 | AG31: 110.04 | AH31: =IF($Q$5*Z31>=8.9,8.9,$Q$5*Z31) -> 0
B32: 15 | C32: 2027-07-04 | D32: 2027-07-16 | E32: =IF(B32="Total",SUM($E$18:E31),IF(B32="","",AB32)) -> 8.13 | F32: =IF(B32="Total",SUM($F$18:F31),IF(B32="","",Y32)) -> 101.91 | G32: =IF(B32="Total",SUM($G$18:G31),IF(B32="","",X32)) -> 110.04 | H32: 211.59 | P32: 2027-07-04 | Q32: 15 | R32: 2027-06-17 | S32: =IF(Q31=VALUE($Q$10),0,IF(Q31="Total",0,IF(Q31="",0,DATE(YEAR(S31),MONTH(S31)+1,Input!W$3)))) -> 2027-07-16 | T32: 30 | U32: 450 | V32: 1.46866801 | W32: 0.68088907 | X32: 110.04 | Y32: 101.91 | Z32: 313.5 | AA32: 0.02595483 | AB32: 8.13 | AC32: 0 | AD32: 313.5 | AE32: 8.13 | AF32: 101.91 | AG32: 110.04 | AH32: 0
B33: 16 | C33: 2027-08-04 | D33: 2027-08-16 | E33: =IF(B33="Total",SUM($E$18:E32),IF(B33="","",AB33)) -> 5.67 | F33: =IF(B33="Total",SUM($F$18:F32),IF(B33="","",Y33)) -> 104.37 | G33: =IF(B33="Total",SUM($G$18:G32),IF(B33="","",X33)) -> 110.04 | H33: 107.22 | P33: 2027-08-04 | Q33: 16 | R33: 2027-07-17 | S33: =IF(Q32=VALUE($Q$10),0,IF(Q32="Total",0,IF(Q32="",0,DATE(YEAR(S32),MONTH(S32)+1,Input!W$3)))) -> 2027-08-16 | T33: 31 | U33: 481 | V33: 1.50807458 | W33: 0.66309718 | X33: 110.04 | Y33: 104.37 | Z33: 211.59 | AA33: 0.0268315 | AB33: 5.67 | AC33: 0 | AD33: 211.59 | AE33: 5.67 | AF33: 104.37 | AG33: 110.04 | AH33: 0
B34: 17 | C34: 2027-09-04 | D34: 2027-09-16 | E34: =IF(B34="Total",SUM($E$18:E33),IF(B34="","",AB34)) -> 2.87 | F34: =IF(B34="Total",SUM($F$18:F33),IF(B34="","",Y34)) -> 107.22 | G34: =IF(B34="Total",SUM($G$18:G33),IF(B34="","",X34)) -> 110.09 | H34: 0 | P34: 2027-09-04 | Q34: 17 | R34: 2027-08-17 | S34: =IF(Q33=VALUE($Q$10),0,IF(Q33="Total",0,IF(Q33="",0,DATE(YEAR(S33),MONTH(S33)+1,Input!W$3)))) -> 2027-09-16 | T34: 31 | U34: 512 | V34: 1.54853848 | W34: 0.6457702 | X34: 110.09 | Y34: 107.22 | Z34: 107.22 | AA34: 0.0268315 | AB34: 2.87 | AC34: 0 | AD34: 107.22 | AE34: 2.87 | AF34: 107.22 | AG34: 110.09 | AH34: 0
B35: Total | E35: =IF(B35="Total",SUM($E$18:E34),IF(B35="","",AB35)) -> 370.73 | F35: =IF(B35="Total",SUM($F$18:F34),IF(B35="","",Y35)) -> 1500 | G35: =IF(B35="Total",SUM($G$18:G34),IF(B35="","",X35)) -> 1870.73 | P35: 2027-10-04 | Q35: Total | R35: 2027-09-17 | S35: =IF(Q34=VALUE($Q$10),0,IF(Q34="Total",0,IF(Q34="",0,DATE(YEAR(S34),MONTH(S34)+1,Input!W$3)))) -> 00:00:00 | T35: 0 | U35: - | V35: - | W35: 0 | X35: 0 | Z35: 0 | AA35: 0 | AE35: 0 | AF35: 0 | AG35: 0 | AH35: 0
E36: =IF(B36="Total",SUM($E$18:E35),IF(B36="","",AB36)) ->  | F36: =IF(B36="Total",SUM($F$18:F35),IF(B36="","",Y36)) ->  | G36: =IF(B36="Total",SUM($G$18:G35),IF(B36="","",X36)) ->  | P36: 2027-11-04 | R36: 1900-01-01 | S36: =IF(Q35=VALUE($Q$10),0,IF(Q35="Total",0,IF(Q35="",0,DATE(YEAR(S35),MONTH(S35)+1,Input!W$3)))) -> 00:00:00 | T36: 0 | W36: 0 | X36: 0 | AA36: 0 | AE36: 0 | AF36: 0 | AG36: 0
E37: =IF(B37="Total",SUM($E$18:E36),IF(B37="","",AB37)) ->  | F37: =IF(B37="Total",SUM($F$18:F36),IF(B37="","",Y37)) ->  | G37: =IF(B37="Total",SUM($G$18:G36),IF(B37="","",X37)) ->  | P37: 2027-12-04 | R37: 1900-01-01 | S37: =IF(Q36=VALUE($Q$10),0,IF(Q36="Total",0,IF(Q36="",0,DATE(YEAR(S36),MONTH(S36)+1,Input!W$3)))) -> 00:00:00 | T37: 0 | W37: 0 | X37: 0 | AA37: 0 | AE37: 0 | AF37: 0 | AG37: 0
E38: =IF(B38="Total",SUM($E$18:E37),IF(B38="","",AB38)) ->  | F38: =IF(B38="Total",SUM($F$18:F37),IF(B38="","",Y38)) ->  | G38: =IF(B38="Total",SUM($G$18:G37),IF(B38="","",X38)) ->  | P38: 2028-01-04 | R38: =IF(S38="-","-",S37+1) -> 1900-01-01 | S38: =IF(Q37=VALUE($Q$10),0,IF(Q37="Total",0,IF(Q37="",0,DATE(YEAR(S37),MONTH(S37)+1,Input!W$3)))) -> 00:00:00 | T38: 0 | W38: 0 | X38: 0 | AA38: 0 | AE38: 0 | AF38: 0 | AG38: 0
E39: =IF(B39="Total",SUM($E$18:E38),IF(B39="","",AB39)) ->  | F39: =IF(B39="Total",SUM($F$18:F38),IF(B39="","",Y39)) ->  | G39: =IF(B39="Total",SUM($G$18:G38),IF(B39="","",X39)) ->  | P39: 2028-02-04 | R39: =IF(S39="-","-",S38+1) -> 1900-01-01 | S39: =IF(Q38=VALUE($Q$10),0,IF(Q38="Total",0,IF(Q38="",0,DATE(YEAR(S38),MONTH(S38)+1,Input!W$3)))) -> 00:00:00 | T39: 0 | W39: 0 | X39: 0 | AA39: 0 | AE39: 0 | AF39: 0 | AG39: 0
E40: =IF(B40="Total",SUM($E$18:E39),IF(B40="","",AB40)) ->  | F40: =IF(B40="Total",SUM($F$18:F39),IF(B40="","",Y40)) ->  | G40: =IF(B40="Total",SUM($G$18:G39),IF(B40="","",X40)) ->  | P40: 2028-03-04 | R40: =IF(S40="-","-",S39+1) -> 1900-01-01 | S40: =IF(Q39=VALUE($Q$10),0,IF(Q39="Total",0,IF(Q39="",0,DATE(YEAR(S39),MONTH(S39)+1,Input!W$3)))) -> 00:00:00 | T40: 0 | W40: 0 | X40: 0 | AA40: 0 | AE40: 0 | AF40: 0 | AG40: 0
E41: =IF(B41="Total",SUM($E$18:E40),IF(B41="","",AB41)) ->  | F41: =IF(B41="Total",SUM($F$18:F40),IF(B41="","",Y41)) ->  | G41: =IF(B41="Total",SUM($G$18:G40),IF(B41="","",X41)) ->  | P41: 2028-04-04 | R41: 1900-01-01 | S41: =IF(Q40=VALUE($Q$10),0,IF(Q40="Total",0,IF(Q40="",0,DATE(YEAR(S40),MONTH(S40)+1,Input!W$3)))) -> 00:00:00 | T41: 0 | W41: 0 | X41: 0 | AA41: 0 | AE41: 0 | AF41: 0 | AG41: 0
E42: =IF(B42="Total",SUM($E$18:E41),IF(B42="","",AB42)) ->  | F42: =IF(B42="Total",SUM($F$18:F41),IF(B42="","",Y42)) ->  | G42: =IF(B42="Total",SUM($G$18:G41),IF(B42="","",X42)) ->  | P42: =IF(OR(Q42="",Q42="Total"),"",EDATE(P41,1)) ->  | R42: =IF(S42="-","-",S41+1) -> 1900-01-01 | S42: =IF(Q41=VALUE($Q$10),0,IF(Q41="Total",0,IF(Q41="",0,DATE(YEAR(S41),MONTH(S41)+1,Input!W$3)))) -> 00:00:00 | T42: 0 | W42: 0 | X42: 0 | AA42: 0 | AE42: 0 | AF42: 0 | AG42: 0
E43: =IF(B43="Total",SUM($E$18:E42),IF(B43="","",AB43)) ->  | F43: =IF(B43="Total",SUM($F$18:F42),IF(B43="","",Y43)) ->  | G43: =IF(B43="Total",SUM($G$18:G42),IF(B43="","",X43)) ->  | P43: =IF(OR(Q43="",Q43="Total"),"",EDATE(P42,1)) ->  | R43: 1900-01-01 | S43: =IF(Q42=VALUE($Q$10),0,IF(Q42="Total",0,IF(Q42="",0,DATE(YEAR(S42),MONTH(S42)+1,Input!W$3)))) -> 00:00:00 | T43: 0 | W43: 0 | X43: 0 | AA43: 0 | AE43: 0 | AF43: 0 | AG43: 0
E44: =IF(B44="Total",SUM($E$18:E43),IF(B44="","",AB44)) ->  | F44: =IF(B44="Total",SUM($F$18:F43),IF(B44="","",Y44)) ->  | G44: =IF(B44="Total",SUM($G$18:G43),IF(B44="","",X44)) ->  | R44: 1900-01-01 | S44: =IF(Q43=VALUE($Q$10),0,IF(Q43="Total",0,IF(Q43="",0,DATE(YEAR(S43),MONTH(S43)+1,Input!W$3)))) -> 00:00:00 | T44: 0 | W44: 0 | X44: 0 | AA44: 0 | AE44: 0 | AF44: 0 | AG44: 0
E45: =IF(B45="Total",SUM($E$18:E44),IF(B45="","",AB45)) ->  | F45: =IF(B45="Total",SUM($F$18:F44),IF(B45="","",Y45)) ->  | G45: =IF(B45="Total",SUM($G$18:G44),IF(B45="","",X45)) ->  | R45: 1900-01-01 | S45: =IF(Q44=VALUE($Q$10),0,IF(Q44="Total",0,IF(Q44="",0,DATE(YEAR(S44),MONTH(S44)+1,Input!W$3)))) -> 00:00:00 | T45: 0 | W45: 0 | X45: 0 | AA45: 0 | AE45: 0 | AF45: 0 | AG45: 0
E46: =IF(B46="Total",SUM($E$18:E45),IF(B46="","",AB46)) ->  | F46: =IF(B46="Total",SUM($F$18:F45),IF(B46="","",Y46)) ->  | G46: =IF(B46="Total",SUM($G$18:G45),IF(B46="","",X46)) ->  | R46: 1900-01-01 | S46: =IF(Q45=VALUE($Q$10),0,IF(Q45="Total",0,IF(Q45="",0,DATE(YEAR(S45),MONTH(S45)+1,Input!W$3)))) -> 00:00:00 | T46: 0 | W46: 0 | X46: 0 | AA46: 0 | AE46: 0 | AF46: 0 | AG46: 0
E47: =IF(B47="Total",SUM($E$18:E46),IF(B47="","",AB47)) ->  | F47: =IF(B47="Total",SUM($F$18:F46),IF(B47="","",Y47)) ->  | G47: =IF(B47="Total",SUM($G$18:G46),IF(B47="","",X47)) ->  | R47: 1900-01-01 | S47: =IF(Q46=VALUE($Q$10),0,IF(Q46="Total",0,IF(Q46="",0,DATE(YEAR(S46),MONTH(S46)+1,Input!W$3)))) -> 00:00:00 | T47: 0 | W47: 0 | X47: 0 | AA47: 0 | AE47: 0 | AF47: 0 | AG47: 0
E48: =IF(B48="Total",SUM($E$18:E47),IF(B48="","",AB48)) ->  | F48: =IF(B48="Total",SUM($F$18:F47),IF(B48="","",Y48)) ->  | G48: =IF(B48="Total",SUM($G$18:G47),IF(B48="","",X48)) ->  | R48: 1900-01-01 | S48: =IF(Q47=VALUE($Q$10),0,IF(Q47="Total",0,IF(Q47="",0,DATE(YEAR(S47),MONTH(S47)+1,Input!W$3)))) -> 00:00:00 | T48: 0 | W48: 0 | X48: 0 | AA48: 0 | AE48: 0 | AF48: 0 | AG48: 0
B49: =Q49 ->  | E49: =IF(B49="Total",SUM($E$18:E48),IF(B49="","",AB49)) ->  | F49: =IF(B49="Total",SUM($F$18:F48),IF(B49="","",Y49)) ->  | G49: =IF(B49="Total",SUM($G$18:G48),IF(B49="","",X49)) ->  | R49: 1900-01-01 | S49: =IF(Q48=VALUE($Q$10),0,IF(Q48="Total",0,IF(Q48="",0,DATE(YEAR(S48),MONTH(S48)+1,Input!W$3)))) -> 00:00:00 | T49: 0 | W49: 0 | X49: 0 | AA49: 0 | AE49: 0 | AF49: 0 | AG49: 0
E50: =IF(B50="Total",SUM($E$18:E49),IF(B50="","",AB50)) ->  | F50: =IF(B50="Total",SUM($F$18:F49),IF(B50="","",Y50)) ->  | G50: =IF(B50="Total",SUM($G$18:G49),IF(B50="","",X50)) ->  | Q50: =+IF(Q49=VALUE($Q$10),"Total",IF(Q49="Total","",IF(Q49="","",Q49+1))) ->  | R50: 1900-01-01 | S50: =IF(Q49=VALUE($Q$10),0,IF(Q49="Total",0,IF(Q49="",0,DATE(YEAR(S49),MONTH(S49)+1,Input!W$3)))) -> 00:00:00 | T50: 0 | V50: =IF(Q50="Total","-",TRUNC(ROUND(((Q$4/360)+1)^U50,8),8)) ->  | W50: 0 | X50: 0 | AA50: 0 | AE50: 0 | AF50: 0 | AG50: 0
E51: =IF(B51="Total",SUM($E$18:E50),IF(B51="","",AB51)) ->  | F51: =IF(B51="Total",SUM($F$18:F50),IF(B51="","",Y51)) ->  | G51: =IF(B51="Total",SUM($G$18:G50),IF(B51="","",X51)) ->  | R51: 1900-01-01 | S51: =IF(Q50=VALUE($Q$10),0,IF(Q50="Total",0,IF(Q50="",0,DATE(YEAR(S50),MONTH(S50)+1,Input!W$3)))) -> 00:00:00 | T51: 0 | W51: 0 | X51: 0 | AA51: 0 | AE51: 0 | AF51: 0 | AG51: 0
E52: =IF(B52="Total",SUM($E$18:E51),IF(B52="","",AB52)) ->  | F52: =IF(B52="Total",SUM($F$18:F51),IF(B52="","",Y52)) ->  | G52: =IF(B52="Total",SUM($G$18:G51),IF(B52="","",X52)) ->  | R52: 1900-01-01 | S52: =IF(Q51=VALUE($Q$10),0,IF(Q51="Total",0,IF(Q51="",0,DATE(YEAR(S51),MONTH(S51)+1,Input!W$3)))) -> 00:00:00 | T52: 0 | W52: 0 | X52: 0 | AA52: 0 | AE52: 0 | AF52: 0 | AG52: =AE52+AF52 -> 0
E53: =IF(B53="Total",SUM($E$18:E52),IF(B53="","",AB53)) ->  | F53: =IF(B53="Total",SUM($F$18:F52),IF(B53="","",Y53)) ->  | G53: =IF(B53="Total",SUM($G$18:G52),IF(B53="","",X53)) ->  | R53: 1900-01-01 | S53: =IF(Q52=VALUE($Q$10),0,IF(Q52="Total",0,IF(Q52="",0,DATE(YEAR(S52),MONTH(S52)+1,Input!W$3)))) -> 00:00:00 | T53: 0 | W53: 0 | X53: 0 | AA53: 0 | AE53: 0 | AF53: 0 | AG53: =AE53+AF53 -> 0
E54: =IF(B54="Total",SUM($E$18:E53),IF(B54="","",AB54)) ->  | F54: =IF(B54="Total",SUM($F$18:F53),IF(B54="","",Y54)) ->  | G54: =IF(B54="Total",SUM($G$18:G53),IF(B54="","",X54)) ->  | R54: 1900-01-01 | S54: =IF(Q53=VALUE($Q$10),0,IF(Q53="Total",0,IF(Q53="",0,DATE(YEAR(S53),MONTH(S53)+1,Input!W$3)))) -> 00:00:00 | T54: 0 | W54: 0 | X54: 0 | AA54: 0 | AE54: 0 | AF54: 0 | AG54: 0
E55: =IF(B55="Total",SUM($E$18:E54),IF(B55="","",AB55)) ->  | F55: =IF(B55="Total",SUM($F$18:F54),IF(B55="","",Y55)) ->  | G55: =IF(B55="Total",SUM($G$18:G54),IF(B55="","",X55)) ->  | R55: =IF(S55="-","-",S54+1) -> 1900-01-01 | S55: =IF(Q54=VALUE($Q$10),0,IF(Q54="Total",0,IF(Q54="",0,DATE(YEAR(S54),MONTH(S54)+1,Input!W$3)))) -> 00:00:00 | T55: 0 | W55: 0 | X55: 0 | AA55: 0 | AE55: 0 | AF55: 0 | AG55: 0
E56: =IF(B56="Total",SUM($E$18:E55),IF(B56="","",AB56)) ->  | F56: =IF(B56="Total",SUM($F$18:F55),IF(B56="","",Y56)) ->  | G56: =IF(B56="Total",SUM($G$18:G55),IF(B56="","",X56)) ->  | Q56: =+IF(Q55=VALUE($Q$10),"Total",IF(Q55="Total","",IF(Q55="","",Q55+1))) ->  | R56: =IF(S56="-","-",S55+1) -> 1900-01-01 | S56: =IF(Q55=VALUE($Q$10),0,IF(Q55="Total",0,IF(Q55="",0,DATE(YEAR(S55),MONTH(S55)+1,Input!W$3)))) -> 00:00:00 | T56: 0 | W56: 0 | X56: 0 | AA56: 0 | AE56: 0 | AF56: 0 | AG56: 0
E57: =IF(B57="Total",SUM($E$18:E56),IF(B57="","",AB57)) ->  | F57: =IF(B57="Total",SUM($F$18:F56),IF(B57="","",Y57)) ->  | G57: =IF(B57="Total",SUM($G$18:G56),IF(B57="","",X57)) ->  | H57: =IF(B57="Total","",IF(B57="","",Z58)) ->  | Q57: =+IF(Q56=VALUE($Q$10),"Total",IF(Q56="Total","",IF(Q56="","",Q56+1))) ->  | R57: =IF(S57="-","-",S56+1) -> 1900-01-01 | S57: =IF(Q56=VALUE($Q$10),0,IF(Q56="Total",0,IF(Q56="",0,DATE(YEAR(S56),MONTH(S56)+1,Input!W$3)))) -> 00:00:00 | T57: 0 | W57: 0 | X57: 0 | AA57: 0 | AE57: 0 | AF57: 0 | AG57: 0
E58: =IF(B58="Total",SUM($E$18:E57),IF(B58="","",AB58)) ->  | F58: =IF(B58="Total",SUM($F$18:F57),IF(B58="","",Y58)) ->  | G58: =IF(B58="Total",SUM($G$18:G57),IF(B58="","",X58)) ->  | Q58: =+IF(Q57=VALUE($Q$10),"Total",IF(Q57="Total","",IF(Q57="","",Q57+1))) ->  | R58: 1900-01-01 | S58: =IF(Q57=VALUE($Q$10),0,IF(Q57="Total",0,IF(Q57="",0,DATE(YEAR(S57),MONTH(S57)+1,Input!W$3)))) -> 00:00:00 | T58: 0 | W58: 0 | X58: 0 | AA58: 0 | AE58: 0 | AF58: 0 | AG58: 0
E59: =IF(B59="Total",SUM($E$18:E58),IF(B59="","",AB59)) ->  | F59: =IF(B59="Total",SUM($F$18:F58),IF(B59="","",Y59)) ->  | G59: =IF(B59="Total",SUM($G$18:G58),IF(B59="","",X59)) ->  | R59: 1900-01-01 | S59: =IF(Q58=VALUE($Q$10),0,IF(Q58="Total",0,IF(Q58="",0,DATE(YEAR(S58),MONTH(S58)+1,Input!W$3)))) -> 00:00:00 | T59: 0 | W59: 0 | X59: 0 | AA59: 0 | AE59: 0 | AF59: 0 | AG59: 0
E60: =IF(B60="Total",SUM($E$18:E59),IF(B60="","",AB60)) ->  | F60: =IF(B60="Total",SUM($F$18:F59),IF(B60="","",Y60)) ->  | G60: =IF(B60="Total",SUM($G$18:G59),IF(B60="","",X60)) ->  | R60: 1900-01-01 | S60: =IF(Q59=VALUE($Q$10),0,IF(Q59="Total",0,IF(Q59="",0,DATE(YEAR(S59),MONTH(S59)+1,Input!W$3)))) -> 00:00:00 | T60: 0 | W60: 0 | X60: 0 | AA60: 0 | AE60: 0 | AF60: 0 | AG60: 0
E61: =IF(B61="Total",SUM($E$18:E60),IF(B61="","",AB61)) ->  | F61: =IF(B61="Total",SUM($F$18:F60),IF(B61="","",Y61)) ->  | G61: =IF(B61="Total",SUM($G$18:G60),IF(B61="","",X61)) ->  | R61: 1900-01-01 | S61: =IF(Q60=VALUE($Q$10),0,IF(Q60="Total",0,IF(Q60="",0,DATE(YEAR(S60),MONTH(S60)+1,Input!W$3)))) -> 00:00:00 | T61: 0 | W61: 0 | X61: 0 | AA61: 0 | AE61: 0 | AF61: 0 | AG61: 0
E62: =IF(B62="Total",SUM($E$18:E61),IF(B62="","",AB62)) ->  | F62: =IF(B62="Total",SUM($F$18:F61),IF(B62="","",Y62)) ->  | G62: =IF(B62="Total",SUM($G$18:G61),IF(B62="","",X62)) ->  | R62: 1900-01-01 | S62: =IF(Q61=VALUE($Q$10),0,IF(Q61="Total",0,IF(Q61="",0,DATE(YEAR(S61),MONTH(S61)+1,Input!W$3)))) -> 00:00:00 | T62: 0 | W62: 0 | X62: 0 | AA62: 0 | AE62: 0 | AF62: 0 | AG62: 0 | AH62: =IF($Q$5*Z62>=8.9,8.9,$Q$5*Z62) -> 
E63: =IF(B63="Total",SUM($E$18:E62),IF(B63="","",AB63)) ->  | F63: =IF(B63="Total",SUM($F$18:F62),IF(B63="","",Y63)) ->  | G63: =IF(B63="Total",SUM($G$18:G62),IF(B63="","",X63)) ->  | R63: 1900-01-01 | S63: =IF(Q62=VALUE($Q$10),0,IF(Q62="Total",0,IF(Q62="",0,DATE(YEAR(S62),MONTH(S62)+1,Input!W$3)))) -> 00:00:00 | T63: 0 | W63: 0 | X63: 0 | AA63: 0 | AE63: 0 | AF63: 0 | AG63: 0
E64: =IF(B64="Total",SUM($E$18:E63),IF(B64="","",AB64)) ->  | F64: =IF(B64="Total",SUM($F$18:F63),IF(B64="","",Y64)) ->  | G64: =IF(B64="Total",SUM($G$18:G63),IF(B64="","",X64)) ->  | R64: 1900-01-01 | S64: =IF(Q63=VALUE($Q$10),0,IF(Q63="Total",0,IF(Q63="",0,DATE(YEAR(S63),MONTH(S63)+1,Input!W$3)))) -> 00:00:00 | T64: 0 | W64: 0 | X64: 0 | AA64: 0 | AC64: =IF(AB64>X64,AB64-X64,0) ->  | AE64: 0 | AF64: 0 | AG64: 0
E65: =IF(B65="Total",SUM($E$18:E64),IF(B65="","",AB65)) ->  | F65: =IF(B65="Total",SUM($F$18:F64),IF(B65="","",Y65)) ->  | G65: =IF(B65="Total",SUM($G$18:G64),IF(B65="","",X65)) ->  | H65: =IF(B65="Total","",IF(B65="","",Z66)) ->  | R65: 1900-01-01 | S65: =IF(Q64=VALUE($Q$10),0,IF(Q64="Total",0,IF(Q64="",0,DATE(YEAR(S64),MONTH(S64)+1,Input!W$3)))) -> 00:00:00 | T65: 0 | W65: 0 | X65: 0 | AA65: 0 | AC65: =IF(AB65>X65,AB65-X65,0) ->  | AE65: 0 | AF65: 0 | AG65: 0
E66: =IF(B66="Total",SUM($E$18:E65),IF(B66="","",AB66)) ->  | F66: =IF(B66="Total",SUM($F$18:F65),IF(B66="","",Y66)) ->  | G66: =IF(B66="Total",SUM($G$18:G65),IF(B66="","",X66)) ->  | P66: xxx | R66: 1900-01-01 | W66: =SUM(W18:W65) -> 13.63033617 | AB66: =SUM(AB18:AB65) -> 370.73 | AC66: =SUM(AC18:AC65) ->  | AE66: =SUM(AE18:AE65) -> 370.73 | AF66: =ROUND(SUM(AF18:AF65),0) -> 1500
I67: xx | K67: xx
